OrganisationURI,OrganisationLabel,Organisation Unit,TransactionNumber,Beneficiary Name,Expense Type,Purpose,Payment Date,Amount
https://opendatacommunities.org/doc/district-council/cheltenham ,Cheltenham Borough Council,Tourist/Visitor Information Centre/ Marketing Cheltenham wef 2019/20,14093093,11th Hour Events Limited,R4001-TOU002,Tools & Equipment - Hire,25/03/2022,"1,596.66"
https://opendatacommunities.org/doc/district-council/cheltenham ,Cheltenham Borough Council,Tourist/Visitor Information Centre/ Marketing Cheltenham wef 2019/20,14093091,11th Hour Events Limited,R4001-TOU002,Tools & Equipment - Hire,25/03/2022,745
https://opendatacommunities.org/doc/district-council/cheltenham ,Cheltenham Borough Council,Tourist/Visitor Information Centre/ Marketing Cheltenham wef 2019/20,14093092,11th Hour Events Limited,R3001-TOU002,Diesel,18/03/2022,"22,812.90"
https://opendatacommunities.org/doc/district-council/cheltenham ,Cheltenham Borough Council,Big Local Project,14093599,2MD Regeneration Ltd,R6280-COM104,Grants,31/03/2022,"3,100.00"
https://opendatacommunities.org/doc/district-council/cheltenham ,Cheltenham Borough Council,Sports & Open Spaces Repairs & Maintenance,14093191,360 Contract Services Ltd,R2083-OPS122,R&M of Build - Routine,25/03/2022,700
https://opendatacommunities.org/doc/district-council/cheltenham ,Cheltenham Borough Council,Recreation Centre Repairs & Maintenance,14092287,A & E Fire and Security Ltd,R2083-REC111,R&M of Build - Routine,25/03/2022,836.58
https://opendatacommunities.org/doc/district-council/cheltenham ,Cheltenham Borough Council,Cemetery & Crematorium Repairs & Maintenance,14092353,A & E Fire and Security Ltd,R2083-CCM111,R&M of Build - Routine,18/03/2022,809.47
https://opendatacommunities.org/doc/district-council/cheltenham ,Cheltenham Borough Council,Town Hall Repairs & Maintenance,14092956,A & E Fire and Security Ltd,R2083-CUL112,R&M of Build - Routine,18/03/2022,526.36
https://opendatacommunities.org/doc/district-council/cheltenham ,Cheltenham Borough Council,Cheltenham Depot,14092985,A & E Fire and Security Ltd,R2004-ADB103,R & M of Build Programmed,25/03/2022,"4,632.02"
https://opendatacommunities.org/doc/district-council/cheltenham ,Cheltenham Borough Council,Cheltenham Depot,14092986,A & E Fire and Security Ltd,R2004-ADB103,R & M of Build Programmed,18/03/2022,"2,971.60"
https://opendatacommunities.org/doc/district-council/cheltenham ,Cheltenham Borough Council,Cheltenham Depot,14093008,A & E Fire and Security Ltd,R2004-ADB103,R & M of Build Programmed,18/03/2022,"6,017.48"
https://opendatacommunities.org/doc/district-council/cheltenham ,Cheltenham Borough Council,Cheltenham Municipal Offices,14093072,A & E Fire and Security Ltd,R2083-ADB101,R&M of Build - Routine,18/03/2022,"1,965.99"
https://opendatacommunities.org/doc/district-council/cheltenham ,Cheltenham Borough Council,Repairs and Maintenance,14093273,A & E Fire and Security Ltd,R2042-HRA100,R & M of Build Fire Systems,25/03/2022,"2,407.41"
https://opendatacommunities.org/doc/district-council/cheltenham ,Cheltenham Borough Council,Cemetery & Crematorium Repairs & Maintenance,14093514,A & E Fire and Security Ltd,R2705-CCM111,Security Systems,31/03/2022,"3,975.08"
https://opendatacommunities.org/doc/district-council/cheltenham ,Cheltenham Borough Council,Car Parks - Off Street R&M,14093049,A1 Maintenance (Stroud) Limited,R2004-CPK101,R & M of Build Programmed,25/03/2022,"4,945.00"
https://opendatacommunities.org/doc/district-council/cheltenham ,Cheltenham Borough Council,Sports & Open Spaces Repairs & Maintenance,14093539,Abbey Surfacing,R2008-OPS122,R & M of Build - Reactive Repairs,31/03/2022,"-3,135.00"
https://opendatacommunities.org/doc/district-council/cheltenham ,Cheltenham Borough Council,Sports & Open Spaces Repairs & Maintenance,14093539,Abbey Surfacing,R2008-OPS122,R & M of Build - Reactive Repairs,31/03/2022,"3,135.00"
https://opendatacommunities.org/doc/district-council/cheltenham ,Cheltenham Borough Council,Sports & Open Spaces Repairs & Maintenance,14093539,Abbey Surfacing,R2008-OPS122,R & M of Build - Reactive Repairs,31/03/2022,"3,135.00"
https://opendatacommunities.org/doc/district-council/cheltenham ,Cheltenham Borough Council,Treasury Management,14092442,Advam (UK) Limited,R4428-COR006,Services - credit card charges,25/03/2022,"1,282.61"
https://opendatacommunities.org/doc/district-council/cheltenham ,Cheltenham Borough Council,Treasury Management,14093018,Advam (UK) Limited,R4428-COR006,Services - credit card charges,25/03/2022,"1,294.60"
https://opendatacommunities.org/doc/district-council/cheltenham ,Cheltenham Borough Council,No Child Left Behind,14093420,All About Fun UK.com,R4000-GBD002,Equipment Purchase,25/03/2022,600
https://opendatacommunities.org/doc/district-council/cheltenham ,Cheltenham Borough Council,Community Safety (Crime Reduction),14092788,Andy Loos Limited,R4000-CCR001,Equipment Purchase,11/03/2022,832
https://opendatacommunities.org/doc/district-council/cheltenham ,Cheltenham Borough Council,Community Safety (Crime Reduction),14093346,Andy Loos Limited,R4000-CCR001,Equipment Purchase,25/03/2022,726
https://opendatacommunities.org/doc/district-council/cheltenham ,Cheltenham Borough Council,Big Local Project,14092978,A-Plan Insurance,R6280-COM104,Grants,11/03/2022,565.2
https://opendatacommunities.org/doc/district-council/cheltenham ,Cheltenham Borough Council,Development Control - Applications,14093233,Applied Town Planning Ltd,R4400-DEV001,Services - Professional Fees,18/03/2022,"3,500.00"
https://opendatacommunities.org/doc/district-council/cheltenham ,Cheltenham Borough Council,Cheltenham Municipal Offices,14092925,Ardagh Management Limited,R2004-ADB101,R & M of Build Programmed,18/03/2022,"23,835.90"
https://opendatacommunities.org/doc/district-council/cheltenham ,Cheltenham Borough Council,Miscellaneous Operational Properties,14092767,Ardagh Management Limited,R2004-ADB104,R & M of Build Programmed,04/03/2022,740
https://opendatacommunities.org/doc/district-council/cheltenham ,Cheltenham Borough Council,Cheltenham Municipal Offices,14092736,Ardagh Management Limited,R2008-ADB101,R & M of Build - Reactive Repairs,18/03/2022,"3,072.00"
https://opendatacommunities.org/doc/district-council/cheltenham ,Cheltenham Borough Council,Cheltenham Municipal Offices,14092924,Ardagh Management Limited,R2004-ADB101,R & M of Build Programmed,18/03/2022,"11,837.00"
https://opendatacommunities.org/doc/district-council/cheltenham ,Cheltenham Borough Council,Cheltenham Municipal Offices,14092992,Ardagh Management Limited,R2004-ADB101,R & M of Build Programmed,31/03/2022,"6,435.00"
https://opendatacommunities.org/doc/district-council/cheltenham ,Cheltenham Borough Council,Clarence Fountain,14092615,Ares Landscape Architects Limited,C1102-CAP208,Landscaping,02/03/2022,"3,772.50"
https://opendatacommunities.org/doc/district-council/cheltenham ,Cheltenham Borough Council,"Cemetery, Crematorium and Churchyards",14092746,Arkell and Hurcombe Limited,R4011-CCM001,Goods For Resale,02/03/2022,518
https://opendatacommunities.org/doc/district-council/cheltenham ,Cheltenham Borough Council,"Cemetery, Crematorium and Churchyards",14093578,Arkell and Hurcombe Limited,R4011-CCM001,Goods For Resale,31/03/2022,684
https://opendatacommunities.org/doc/district-council/cheltenham ,Cheltenham Borough Council,Treasury Management,14093544,Arlingclose Limited,R4400-COR006,Services - Professional Fees,31/03/2022,"12,650.00"
https://opendatacommunities.org/doc/district-council/cheltenham ,Cheltenham Borough Council,Community Welfare Grants,14093325,Aspire Foundation,R6280-GBD001,Grants,25/03/2022,"4,798.62"
https://opendatacommunities.org/doc/district-council/cheltenham ,Cheltenham Borough Council,Community Welfare Grants,14093424,Aspire Foundation,R6280-GBD001,Grants,25/03/2022,"18,813.03"
https://opendatacommunities.org/doc/district-council/cheltenham ,Cheltenham Borough Council,Tourist/Visitor Information Centre/ Marketing Cheltenham wef 2019/20,14092936,Ben Hunt t/a 8-78,R4400-TOU002,Services - Professional Fees,11/03/2022,630
https://opendatacommunities.org/doc/district-council/cheltenham ,Cheltenham Borough Council,Corporate Management,14093677,Bournemouth Convention Bureau Limited,R4611-COR001,Conference Expenses,31/03/2022,645
https://opendatacommunities.org/doc/district-council/cheltenham ,Cheltenham Borough Council,Oakley Resource Centre,14092934,British Gas Business,R2101-COM101,Gas,11/03/2022,545.23
https://opendatacommunities.org/doc/district-council/cheltenham ,Cheltenham Borough Council,Supervision and Management,14093589,British Gas Business (Cheltenham),R2100-HRA110,Electricity,31/03/2022,"1,148.44"
https://opendatacommunities.org/doc/district-council/cheltenham ,Cheltenham Borough Council,New Heating Installations,14093568,British Gas Social Housing Ltd t/a PH Jones,C1107-CAH009,Building Works,31/03/2022,"2,924.15"
https://opendatacommunities.org/doc/district-council/cheltenham ,Cheltenham Borough Council,Repairs and Maintenance,14092794,British Gas Social Housing Ltd t/a PH Jones,R2040-HRA100,R & M of Build Central Heating,02/03/2022,"2,356.83"
https://opendatacommunities.org/doc/district-council/cheltenham ,Cheltenham Borough Council,Repairs and Maintenance,14092795,British Gas Social Housing Ltd t/a PH Jones,R2040-HRA100,R & M of Build Central Heating,02/03/2022,"4,729.53"
https://opendatacommunities.org/doc/district-council/cheltenham ,Cheltenham Borough Council,Repairs and Maintenance,14092796,British Gas Social Housing Ltd t/a PH Jones,R2040-HRA100,R & M of Build Central Heating,02/03/2022,"3,329.49"
https://opendatacommunities.org/doc/district-council/cheltenham ,Cheltenham Borough Council,New Heating Installations,14092797,British Gas Social Housing Ltd t/a PH Jones,C1107-CAH009,Building Works,02/03/2022,"2,090.42"
https://opendatacommunities.org/doc/district-council/cheltenham ,Cheltenham Borough Council,New Heating Installations,14093024,British Gas Social Housing Ltd t/a PH Jones,C1107-CAH009,Building Works,18/03/2022,"2,368.01"
https://opendatacommunities.org/doc/district-council/cheltenham ,Cheltenham Borough Council,New Heating Installations,14093011,British Gas Social Housing Ltd t/a PH Jones,C1107-CAH009,Building Works,18/03/2022,"1,386.19"
https://opendatacommunities.org/doc/district-council/cheltenham ,Cheltenham Borough Council,New Heating Installations,14093022,British Gas Social Housing Ltd t/a PH Jones,C1107-CAH009,Building Works,18/03/2022,"2,733.94"
https://opendatacommunities.org/doc/district-council/cheltenham ,Cheltenham Borough Council,New Heating Installations,14093023,British Gas Social Housing Ltd t/a PH Jones,C1107-CAH009,Building Works,18/03/2022,"11,240.02"
https://opendatacommunities.org/doc/district-council/cheltenham ,Cheltenham Borough Council,Repairs and Maintenance,14093025,British Gas Social Housing Ltd t/a PH Jones,R2040-HRA100,R & M of Build Central Heating,18/03/2022,"1,309.23"
https://opendatacommunities.org/doc/district-council/cheltenham ,Cheltenham Borough Council,Repairs and Maintenance,14093129,British Gas Social Housing Ltd t/a PH Jones,R2040-HRA100,R & M of Build Central Heating,18/03/2022,"3,404.31"
https://opendatacommunities.org/doc/district-council/cheltenham ,Cheltenham Borough Council,Repairs and Maintenance,14093131,British Gas Social Housing Ltd t/a PH Jones,R2040-HRA100,R & M of Build Central Heating,18/03/2022,"3,678.46"
https://opendatacommunities.org/doc/district-council/cheltenham ,Cheltenham Borough Council,Repairs and Maintenance,14093133,British Gas Social Housing Ltd t/a PH Jones,R2040-HRA100,R & M of Build Central Heating,18/03/2022,547.36
https://opendatacommunities.org/doc/district-council/cheltenham ,Cheltenham Borough Council,New Heating Installations,14093135,British Gas Social Housing Ltd t/a PH Jones,C1107-CAH009,Building Works,18/03/2022,"8,351.03"
https://opendatacommunities.org/doc/district-council/cheltenham ,Cheltenham Borough Council,New Heating Installations,14093134,British Gas Social Housing Ltd t/a PH Jones,C1107-CAH009,Building Works,18/03/2022,"8,203.27"
https://opendatacommunities.org/doc/district-council/cheltenham ,Cheltenham Borough Council,Repairs and Maintenance,14093126,British Gas Social Housing Ltd t/a PH Jones,R2040-HRA100,R & M of Build Central Heating,18/03/2022,"2,244.60"
https://opendatacommunities.org/doc/district-council/cheltenham ,Cheltenham Borough Council,Repairs and Maintenance,14093128,British Gas Social Housing Ltd t/a PH Jones,R2040-HRA100,R & M of Build Central Heating,18/03/2022,"3,388.32"
https://opendatacommunities.org/doc/district-council/cheltenham ,Cheltenham Borough Council,Repairs and Maintenance,14093228,British Gas Social Housing Ltd t/a PH Jones,R2040-HRA100,R & M of Build Central Heating,18/03/2022,"20,460.42"
https://opendatacommunities.org/doc/district-council/cheltenham ,Cheltenham Borough Council,Repairs and Maintenance,14093536,British Gas Social Housing Ltd t/a PH Jones,R2040-HRA100,R & M of Build Central Heating,31/03/2022,"3,815.82"
https://opendatacommunities.org/doc/district-council/cheltenham ,Cheltenham Borough Council,Repairs and Maintenance,14093573,British Gas Social Housing Ltd t/a PH Jones,R5006-HRA100,Sub Contractor Payments,31/03/2022,"3,105.96"
https://opendatacommunities.org/doc/district-council/cheltenham ,Cheltenham Borough Council,New Heating Installations,14093566,British Gas Social Housing Ltd t/a PH Jones,C1107-CAH009,Building Works,31/03/2022,"4,106.37"
https://opendatacommunities.org/doc/district-council/cheltenham ,Cheltenham Borough Council,New Heating Installations,14093567,British Gas Social Housing Ltd t/a PH Jones,C1107-CAH009,Building Works,31/03/2022,"16,617.83"
https://opendatacommunities.org/doc/district-council/cheltenham ,Cheltenham Borough Council,New Heating Installations,14093569,British Gas Social Housing Ltd t/a PH Jones,C1107-CAH009,Building Works,31/03/2022,"8,938.33"
https://opendatacommunities.org/doc/district-council/cheltenham ,Cheltenham Borough Council,Repairs and Maintenance,14093572,British Gas Social Housing Ltd t/a PH Jones,R2040-HRA100,R & M of Build Central Heating,31/03/2022,"3,043.15"
https://opendatacommunities.org/doc/district-council/cheltenham ,Cheltenham Borough Council,Repairs and Maintenance,14093576,British Gas Social Housing Ltd t/a PH Jones,R2040-HRA100,R & M of Build Central Heating,31/03/2022,"4,451.79"
https://opendatacommunities.org/doc/district-council/cheltenham ,Cheltenham Borough Council,Animal Control,14093667,Bromsgrove District Council,R4413-REG003,Dog Kennels Fees,31/03/2022,555
https://opendatacommunities.org/doc/district-council/cheltenham ,Cheltenham Borough Council,CCTV,14093009,BT (Business Billing - Durham),R4436-CCT001,CCTV Line Rental,18/03/2022,"2,101.09"
https://opendatacommunities.org/doc/district-council/cheltenham ,Cheltenham Borough Council,Supervision and Management,14092092,C &  R Decorating and Maintenance Limited,R5011-HRA110,Minor Neighbourhood Works,02/03/2022,536
https://opendatacommunities.org/doc/district-council/cheltenham ,Cheltenham Borough Council,"Cemetery, Crematorium and Churchyards",14093330,Cemetery Development Services Limited T/A The CDS Group,R4400-CCM001,Services - Professional Fees,25/03/2022,"2,500.00"
https://opendatacommunities.org/doc/district-council/cheltenham ,Cheltenham Borough Council,"Cemetery, Crematorium and Churchyards",14093447,Cemetery Development Services Limited T/A The CDS Group,R4400-CCM001,Services - Professional Fees,25/03/2022,"2,050.00"
https://opendatacommunities.org/doc/district-council/cheltenham ,Cheltenham Borough Council,Recreation Centre Repairs & Maintenance,14093305,Centrica Business Solutions (Generations) limited,R2100-REC111,Electricity,25/03/2022,"2,133.11"
https://opendatacommunities.org/doc/district-council/cheltenham ,Cheltenham Borough Council,Cheltenham Business Improvement District (BID) Levy,14093320,Cheltenham Bid Limited,R4974-HLD160,Reimbursement to other L.A.'s,14/03/2022,"15,280.67"
https://opendatacommunities.org/doc/district-council/cheltenham ,Cheltenham Borough Council,Community Welfare Grants,14093577,Cheltenham Civic Society,R6280-GBD001,Grants,31/03/2022,"2,000.00"
https://opendatacommunities.org/doc/district-council/cheltenham ,Cheltenham Borough Council,No Child Left Behind,14093408,Cheltenham Leisure and Culture Limited,R2201-GBD002,Room Hire,25/03/2022,"1,777.78"
https://opendatacommunities.org/doc/district-council/cheltenham ,Cheltenham Borough Council,Minster Innovation Exchange,14092903,Cheltenham Tree Services Limited,C1102-CAP515,Landscaping,11/03/2022,"3,350.00"
https://opendatacommunities.org/doc/district-council/cheltenham ,Cheltenham Borough Council,Trees,14093000,Cheltenham Tree Services Limited,R2070-PLP006,Tree Work,11/03/2022,650
https://opendatacommunities.org/doc/district-council/cheltenham ,Cheltenham Borough Council,Housing Benefit Administration,14092929,CIPFA Business Limited,R4701-HBA001,Subscriptions,11/03/2022,"2,695.00"
https://opendatacommunities.org/doc/district-council/cheltenham ,Cheltenham Borough Council,Committee Services,14093411,Civica UK Limited,R4530-SUP007,IT - Purchase of Hardware,25/03/2022,"1,500.00"
https://opendatacommunities.org/doc/district-council/cheltenham ,Cheltenham Borough Council,Committee Services,14093410,Civica UK Limited,R4530-SUP007,IT - Purchase of Hardware,25/03/2022,"2,000.00"
https://opendatacommunities.org/doc/district-council/cheltenham ,Cheltenham Borough Council,Cashiers,14092778,Civica UK Limited,R4534-SUP014,IT - Maint Agreements,02/03/2022,"41,852.00"
https://opendatacommunities.org/doc/district-council/cheltenham ,Cheltenham Borough Council,Revenues & Benefits Overheads,14092884,Civica UK Limited,R4531-LTC101,IT - Purchase of Software,04/03/2022,"6,525.00"
https://opendatacommunities.org/doc/district-council/cheltenham ,Cheltenham Borough Council,"Cemetery, Crematorium and Churchyards",14092785,Cleevelands Medical Centre,R4401-CCM001,Services - Fees and Charges,02/03/2022,"4,150.00"
https://opendatacommunities.org/doc/district-council/cheltenham ,Cheltenham Borough Council,Repairs and Maintenance,14093230,Concept Elevators (UK) Ltd,R2401-HRA100,Water Services - Metered,25/03/2022,"2,735.05"
https://opendatacommunities.org/doc/district-council/cheltenham ,Cheltenham Borough Council,Phase 3 Development,14092886,Connells Residential,C1114-CAH039,Valuation Fees,04/03/2022,"1,725.00"
https://opendatacommunities.org/doc/district-council/cheltenham ,Cheltenham Borough Council,Phase 3 Development,14093234,Connells Residential,C1114-CAH039,Valuation Fees,18/03/2022,765
https://opendatacommunities.org/doc/district-council/cheltenham ,Cheltenham Borough Council,Car Parks - Off Street Operations,14093343,"Corpus Christi College, Oxford",R2200-CPK001,Rent,25/03/2022,"13,358.75"
https://opendatacommunities.org/doc/district-council/cheltenham ,Cheltenham Borough Council,Emergency Planning,14092943,Cotswold Drain Service Limited,R4400-EMP001,Services - Professional Fees,11/03/2022,520
https://opendatacommunities.org/doc/district-council/cheltenham ,Cheltenham Borough Council,"Cemetery, Crematorium and Churchyards",14093301,Cotswold Estates and Gardens Limited,R2076-CCM001,Grounds Maintenance - Non Contract,25/03/2022,"2,040.00"
https://opendatacommunities.org/doc/district-council/cheltenham ,Cheltenham Borough Council,"Cemetery, Crematorium and Churchyards",14093301,Cotswold Estates and Gardens Limited,R2070-CCM001,Tree Work,25/03/2022,"2,000.00"
https://opendatacommunities.org/doc/district-council/cheltenham ,Cheltenham Borough Council,Phase 3 Development,14092979,Cotswold Transport Planning Limited,C1005-CAH039,Surveyors Fees,11/03/2022,"2,000.00"
https://opendatacommunities.org/doc/district-council/cheltenham ,Cheltenham Borough Council,Oakley Resource Centre,14092735,County Clean Limited,R2700-COM101,Contract Cleaning,02/03/2022,"1,362.90"
https://opendatacommunities.org/doc/district-council/cheltenham ,Cheltenham Borough Council,Council Tax Collection,14093171,DHL Parcel UK Limited T/A UK Mail,R4520-LTC001,Postages - stamps,18/03/2022,716.87
https://opendatacommunities.org/doc/district-council/cheltenham ,Cheltenham Borough Council,Council Tax Collection,14093175,DHL Parcel UK Limited T/A UK Mail,R4520-LTC001,Postages - stamps,18/03/2022,631.53
https://opendatacommunities.org/doc/district-council/cheltenham ,Cheltenham Borough Council,Council Tax Collection,14093184,DHL Parcel UK Limited T/A UK Mail,R4520-LTC001,Postages - stamps,18/03/2022,662.34
https://opendatacommunities.org/doc/district-council/cheltenham ,Cheltenham Borough Council,Building Control - Fee Earning Work,14093504,District Surveyor Association Limited T/A LABC,R4701-BUC001,Subscriptions,25/03/2022,"2,593.22"
https://opendatacommunities.org/doc/district-council/cheltenham ,Cheltenham Borough Council,ICT,14093311,Dotted Eyes Limited,R4534-SUP005,IT - Maint Agreements,25/03/2022,528
https://opendatacommunities.org/doc/district-council/cheltenham ,Cheltenham Borough Council,Sports & Open Spaces Operations,14092912,Dudley Fencing & Landscaping Limited,R2075-OPS002,Grounds Maintenance - Contract,11/03/2022,"2,998.00"
https://opendatacommunities.org/doc/district-council/cheltenham ,Cheltenham Borough Council,Sports & Open Spaces Operations,14092912,Dudley Fencing & Landscaping Limited,R2075-OPS002,Grounds Maintenance - Contract,11/03/2022,"-2,998.00"
https://opendatacommunities.org/doc/district-council/cheltenham ,Cheltenham Borough Council,Sports & Open Spaces Operations,14092912,Dudley Fencing & Landscaping Limited,R2075-OPS002,Grounds Maintenance - Contract,11/03/2022,"2,998.00"
https://opendatacommunities.org/doc/district-council/cheltenham ,Cheltenham Borough Council,Burrows Improvement Project,14093414,E.G. Carter & Co. Limited,C1107-CAP607,Building Works,31/03/2022,"14,257.73"
https://opendatacommunities.org/doc/district-council/cheltenham ,Cheltenham Borough Council,Sports & Open Spaces Operations,14093318,Easy-Gate Ltd,R4000-OPS002,Equipment Purchase,25/03/2022,"4,650.00"
https://opendatacommunities.org/doc/district-council/cheltenham ,Cheltenham Borough Council,Supervision and Management,14093384,Ecoclean Environmental Ltd,R4000-HRA110,Equipment Purchase,25/03/2022,720
https://opendatacommunities.org/doc/district-council/cheltenham ,Cheltenham Borough Council,Supervision and Management,14093386,Ecoclean Environmental Ltd,R2700-HRA110,Contract Cleaning,25/03/2022,"1,296.00"
https://opendatacommunities.org/doc/district-council/cheltenham ,Cheltenham Borough Council,Supervision and Management,14093376,Ecoclean Environmental Ltd,R2700-HRA110,Contract Cleaning,25/03/2022,720
https://opendatacommunities.org/doc/district-council/cheltenham ,Cheltenham Borough Council,Supervision and Management,14093369,Ecoclean Environmental Ltd,R5011-HRA110,Minor Neighbourhood Works,31/03/2022,"1,780.00"
https://opendatacommunities.org/doc/district-council/cheltenham ,Cheltenham Borough Council,Supervision and Management,14093387,Ecoclean Environmental Ltd,R5011-HRA110,Minor Neighbourhood Works,31/03/2022,"1,460.00"
https://opendatacommunities.org/doc/district-council/cheltenham ,Cheltenham Borough Council,Supervision and Management,14093383,Ecoclean Environmental Ltd,R5011-HRA110,Minor Neighbourhood Works,31/03/2022,"2,485.00"
https://opendatacommunities.org/doc/district-council/cheltenham ,Cheltenham Borough Council,Supervision and Management,14093381,Ecoclean Environmental Ltd,R5011-HRA110,Minor Neighbourhood Works,31/03/2022,970
https://opendatacommunities.org/doc/district-council/cheltenham ,Cheltenham Borough Council,Supervision and Management,14093385,Ecoclean Environmental Ltd,R5011-HRA110,Minor Neighbourhood Works,25/03/2022,"2,150.00"
https://opendatacommunities.org/doc/district-council/cheltenham ,Cheltenham Borough Council,Supervision and Management,14093388,Ecoclean Environmental Ltd,R5011-HRA110,Minor Neighbourhood Works,31/03/2022,520
https://opendatacommunities.org/doc/district-council/cheltenham ,Cheltenham Borough Council,Supervision and Management,14093382,Ecoclean Environmental Ltd,R5011-HRA110,Minor Neighbourhood Works,31/03/2022,515
https://opendatacommunities.org/doc/district-council/cheltenham ,Cheltenham Borough Council,Supervision and Management,14093375,Ecoclean Environmental Ltd,R5011-HRA110,Minor Neighbourhood Works,31/03/2022,624
https://opendatacommunities.org/doc/district-council/cheltenham ,Cheltenham Borough Council,Supervision and Management,14093377,Ecoclean Environmental Ltd,R5011-HRA110,Minor Neighbourhood Works,25/03/2022,800
https://opendatacommunities.org/doc/district-council/cheltenham ,Cheltenham Borough Council,Supervision and Management,14093371,Ecoclean Environmental Ltd,R5011-HRA110,Minor Neighbourhood Works,31/03/2022,"1,940.00"
https://opendatacommunities.org/doc/district-council/cheltenham ,Cheltenham Borough Council,High Street re-opening,14092897,Edale Enterprises Limited,R4400-COV020,Services - Professional Fees,04/03/2022,"4,950.00"
https://opendatacommunities.org/doc/district-council/cheltenham ,Cheltenham Borough Council,Asbestos Management,14093482,Environmental Management Solutions Limited,C1107-CAH012,Building Works,10/03/2022,"38,059.50"
https://opendatacommunities.org/doc/district-council/cheltenham ,Cheltenham Borough Council,Asbestos Management,14093904,Environmental Management Solutions Limited,C1107-CAH012,Building Works,10/03/2022,"37,832.00"
https://opendatacommunities.org/doc/district-council/cheltenham ,Cheltenham Borough Council,Oakley Resource Centre,14092900,E-on Energy,R2100-COM101,Electricity,11/03/2022,"1,122.22"
https://opendatacommunities.org/doc/district-council/cheltenham ,Cheltenham Borough Council,Income and Expenditure on Investment Properties and Changes in Their Fair Value,14093005,E-on Next,R2101-FIE040,Gas,18/03/2022,"1,519.09"
https://opendatacommunities.org/doc/district-council/cheltenham ,Cheltenham Borough Council,Corporate Management,14093314,Epiq Systems Ltd,R4420-COR001,Legal Expenses And Court Costs,25/03/2022,"1,125.74"
https://opendatacommunities.org/doc/district-council/cheltenham ,Cheltenham Borough Council,"Cemetery, Crematorium and Churchyards",14093540,Equip4Work Limited T/A Office Furniture Online,R4000-CCM001,Equipment Purchase,31/03/2022,563
https://opendatacommunities.org/doc/district-council/cheltenham ,Cheltenham Borough Council,Vehicles & recycling equipment,14093315,Ernest Doe and Sons Ltd,C4000-CAP301,Acquisition of Equipment,25/03/2022,"16,898.00"
https://opendatacommunities.org/doc/district-council/cheltenham ,Cheltenham Borough Council,Climate Change,14092856,Etude Consulting Limited,R4411-CCC001,Consultancy Fees,04/03/2022,"8,688.00"
https://opendatacommunities.org/doc/district-council/cheltenham ,Cheltenham Borough Council,Climate Change,14093099,Etude Consulting Limited,R4411-CCC001,Consultancy Fees,11/03/2022,"5,792.00"
https://opendatacommunities.org/doc/district-council/cheltenham ,Cheltenham Borough Council,Sustainability Measures,14092741,Evolve Home Energy Solutions Limited,C1107-CAH032,Building Works,02/03/2022,770
https://opendatacommunities.org/doc/district-council/cheltenham ,Cheltenham Borough Council,Sustainability Measures,14093342,Evolve Home Energy Solutions Limited,C1107-CAH032,Building Works,25/03/2022,528.5
https://opendatacommunities.org/doc/district-council/cheltenham ,Cheltenham Borough Council,Sustainability Measures,14093094,Evolve Home Energy Solutions Limited,C1107-CAH032,Building Works,18/03/2022,560
https://opendatacommunities.org/doc/district-council/cheltenham ,Cheltenham Borough Council,Sustainability Measures,14093522,Evolve Home Energy Solutions Limited,C1107-CAH032,Building Works,31/03/2022,643
https://opendatacommunities.org/doc/district-council/cheltenham ,Cheltenham Borough Council,Community Welfare Grants,14093425,Family Space in Hesters Way Ltd,R6280-GBD001,Grants,25/03/2022,"2,000.00"
https://opendatacommunities.org/doc/district-council/cheltenham ,Cheltenham Borough Council,Fire Protection,14092799,FIRNTEC LTD,C1107-CAH015,Building Works,02/03/2022,"1,796.19"
https://opendatacommunities.org/doc/district-council/cheltenham ,Cheltenham Borough Council,Fire Protection,14092798,FIRNTEC LTD,C1107-CAH015,Building Works,02/03/2022,"1,306.32"
https://opendatacommunities.org/doc/district-council/cheltenham ,Cheltenham Borough Council,Fire Protection,14092800,FIRNTEC LTD,C1107-CAH015,Building Works,02/03/2022,979.74
https://opendatacommunities.org/doc/district-council/cheltenham ,Cheltenham Borough Council,Fire Protection,14093088,FIRNTEC LTD,C1107-CAH015,Building Works,18/03/2022,"2,030.79"
https://opendatacommunities.org/doc/district-council/cheltenham ,Cheltenham Borough Council,Supervision and Management,14092553,First Arb Tree Services,R2070-HRA110,Tree Work,11/03/2022,"1,190.00"
https://opendatacommunities.org/doc/district-council/cheltenham ,Cheltenham Borough Council,"Cemetery, Crematorium and Churchyards",14092904,First Arb Tree Services,R2070-CCM001,Tree Work,11/03/2022,750
https://opendatacommunities.org/doc/district-council/cheltenham ,Cheltenham Borough Council,"Cemetery, Crematorium and Churchyards",14093355,First Arb Tree Services,R2070-CCM001,Tree Work,25/03/2022,"1,060.00"
https://opendatacommunities.org/doc/district-council/cheltenham ,Cheltenham Borough Council,Trees,14093570,Gaskins Treework Specialists,R2070-PLP006,Tree Work,31/03/2022,705
https://opendatacommunities.org/doc/district-council/cheltenham ,Cheltenham Borough Council,Allotments,14093772,Gaskins Treework Specialists,R2076-OPS004,Grounds Maintenance - Non Contract,31/03/2022,720
https://opendatacommunities.org/doc/district-council/cheltenham ,Cheltenham Borough Council,Allotments,14093772,Gaskins Treework Specialists,R2076-OPS004,Grounds Maintenance - Non Contract,31/03/2022,"3,785.00"
https://opendatacommunities.org/doc/district-council/cheltenham ,Cheltenham Borough Council,Reception/Customer Services,14091934,Get Media Ltd,R4317-SUP008,Non Staff Advertising,11/03/2022,"1,250.00"
https://opendatacommunities.org/doc/district-council/cheltenham ,Cheltenham Borough Council,Car Parks - Off Street Operations,14093042,Glevum Security Limited,R4401-CPK001,Services - Fees and Charges,18/03/2022,"1,097.60"
https://opendatacommunities.org/doc/district-council/cheltenham ,Cheltenham Borough Council,Vehicles & recycling equipment,14093264,Glosta Engineering Ltd,C4000-CAP301,Acquisition of Equipment,25/03/2022,"53,200.00"
https://opendatacommunities.org/doc/district-council/cheltenham ,Cheltenham Borough Council,Land Charges,14093306,Gloucestershire County Council,R4401-BUC004,Services - Fees and Charges,25/03/2022,"1,640.00"
https://opendatacommunities.org/doc/district-council/cheltenham ,Cheltenham Borough Council,Democratic Representation and Management,14093029,Gloucestershire County Council,R4400-DRM001,Services - Professional Fees,18/03/2022,"2,500.00"
https://opendatacommunities.org/doc/district-council/cheltenham ,Cheltenham Borough Council,Corona Virus,14093030,Gloucestershire County Council,R4425-COV019,Professional Fees,18/03/2022,"43,477.91"
https://opendatacommunities.org/doc/district-council/cheltenham ,Cheltenham Borough Council,Trade Waste,14092940,Gloucestershire County Council,R4417-TRW001,Waste Tipping Charges,11/03/2022,"14,607.60"
https://opendatacommunities.org/doc/district-council/cheltenham ,Cheltenham Borough Council,Trade Waste,14093202,Gloucestershire County Council,R4417-TRW001,Waste Tipping Charges,18/03/2022,"24,484.42"
https://opendatacommunities.org/doc/district-council/cheltenham ,Cheltenham Borough Council,Trade Waste,14093505,Gloucestershire County Council,R4417-TRW001,Waste Tipping Charges,25/03/2022,"17,737.80"
https://opendatacommunities.org/doc/district-council/cheltenham ,Cheltenham Borough Council,Community Welfare Grants,14093492,Gloucestershire County Council,R6280-GBD001,Grants,25/03/2022,"39,664.83"
https://opendatacommunities.org/doc/district-council/cheltenham ,Cheltenham Borough Council,Community Welfare Grants,14092742,Gloucestershire Rural Community Council,R6280-GBD001,Grants,02/03/2022,"4,500.00"
https://opendatacommunities.org/doc/district-council/cheltenham ,Cheltenham Borough Council,Big Local Project,14092859,Gloucestershire Rural Community Council,R6280-COM104,Grants,11/03/2022,"1,268.91"
https://opendatacommunities.org/doc/district-council/cheltenham ,Cheltenham Borough Council,Big Local Project,14093525,Gloucestershire Rural Community Council,R6280-COM104,Grants,31/03/2022,"1,268.91"
https://opendatacommunities.org/doc/district-council/cheltenham ,Cheltenham Borough Council,Development Control - Applications,14092784,Gloucestershire Wildlife Enterprises Ltd,R4400-DEV001,Services - Professional Fees,02/03/2022,883.2
https://opendatacommunities.org/doc/district-council/cheltenham ,Cheltenham Borough Council,"Cemetery, Crematorium and Churchyards",14093155,Goldingham Contracts Limited,R2702-CCM001,Pest Control,18/03/2022,625
https://opendatacommunities.org/doc/district-council/cheltenham ,Cheltenham Borough Council,Car Parks - Off Street R&M,14092861,Gooch Group Limited,R2700-CPK101,Contract Cleaning,04/03/2022,660
https://opendatacommunities.org/doc/district-council/cheltenham ,Cheltenham Borough Council,Car Parks - Off Street R&M,14092939,Gooch Group Limited,R2700-CPK101,Contract Cleaning,31/03/2022,"1,676.50"
https://opendatacommunities.org/doc/district-council/cheltenham ,Cheltenham Borough Council,Repairs and Maintenance,14093051,Gooch Group Limited,R2700-HRA100,Contract Cleaning,25/03/2022,688.57
https://opendatacommunities.org/doc/district-council/cheltenham ,Cheltenham Borough Council,Corporate Management,14093269,Grant Thornton UK LLP,R4430-COR001,Audit Fees,25/03/2022,"10,260.75"
https://opendatacommunities.org/doc/district-council/cheltenham ,Cheltenham Borough Council,Corporate Management,14093680,Grant Thornton UK LLP,R4430-COR001,Audit Fees,31/03/2022,"26,500.00"
https://opendatacommunities.org/doc/district-council/cheltenham ,Cheltenham Borough Council,Homelessness,14092765,Grosvenor Residential Lettings Limited,R6280-HOM001,Grants,04/03/2022,"1,205.00"
https://opendatacommunities.org/doc/district-council/cheltenham ,Cheltenham Borough Council,Income and Expenditure on Investment Properties and Changes in Their Fair Value,14093038,H & W Facilities Management Limited,R2700-FIE040,Contract Cleaning,18/03/2022,582.83
https://opendatacommunities.org/doc/district-council/cheltenham ,Cheltenham Borough Council,Big Local Project,14093478,Halsall Lloyd Partnership,R6280-COM104,Grants,25/03/2022,"12,000.00"
https://opendatacommunities.org/doc/district-council/cheltenham ,Cheltenham Borough Council,Sports & Open Spaces Operations,14092987,Heritage Graziers,R2071-OPS002,Open Spaces and Grassed Areas,11/03/2022,"5,181.94"
https://opendatacommunities.org/doc/district-council/cheltenham ,Cheltenham Borough Council,Green Waste,14093010,Hoge 100 Business Systems Limited,R4534-RYC002,IT - Maint Agreements,18/03/2022,"4,308.00"
https://opendatacommunities.org/doc/district-council/cheltenham ,Cheltenham Borough Council,Regulatory and Environmental Services,14092895,Idox Software Limited,R4531-SUP040,IT - Purchase of Software,04/03/2022,"88,256.49"
https://opendatacommunities.org/doc/district-council/cheltenham ,Cheltenham Borough Council,Land Charges,14093669,Idox Software Limited,R4531-BUC004,IT - Purchase of Software,31/03/2022,"1,350.00"
https://opendatacommunities.org/doc/district-council/cheltenham ,Cheltenham Borough Council,Parks & Gardens Operations,14092946,Illman Young Landscape Design Limited,R2075-OPS001,Grounds Maintenance - Contract,11/03/2022,620
https://opendatacommunities.org/doc/district-council/cheltenham ,Cheltenham Borough Council,Car Parks - Off Street Operations,14092854,Imperial Civil Enforcement Solutions Limited,R4531-CPK001,IT - Purchase of Software,11/03/2022,"13,168.47"
https://opendatacommunities.org/doc/district-council/cheltenham ,Cheltenham Borough Council,Community Welfare Grants,14093075,Inspire to Aspire C.I.C,R4400-GBD001,Services - Professional Fees,18/03/2022,"4,583.00"
https://opendatacommunities.org/doc/district-council/cheltenham ,Cheltenham Borough Council,Press & PR/Communications,14093096,Jadu Creative Limited,R4400-SUP018,Services - Professional Fees,18/03/2022,"5,000.00"
https://opendatacommunities.org/doc/district-council/cheltenham ,Cheltenham Borough Council,External Improvements,14092814,Joyner P A Ltd,C1107-CAH003,Building Works,04/03/2022,"124,140.17"
https://opendatacommunities.org/doc/district-council/cheltenham ,Cheltenham Borough Council,Sustainability Measures,14093226,Joyner P A Ltd,C1107-CAH032,Building Works,18/03/2022,"20,330.99"
https://opendatacommunities.org/doc/district-council/cheltenham ,Cheltenham Borough Council,External Improvements,14093551,Joyner P A Ltd,C1107-CAH003,Building Works,31/03/2022,"167,136.02"
https://opendatacommunities.org/doc/district-council/cheltenham ,Cheltenham Borough Council,Fire Protection,14093551,Joyner P A Ltd,C1107-CAH015,Building Works,31/03/2022,"24,841.51"
https://opendatacommunities.org/doc/district-council/cheltenham ,Cheltenham Borough Council,Cyber Business Park,14093247,Kava Media Ltd,R4318-PLP105,Photography & Promotional Materials/Design,18/03/2022,"2,860.00"
https://opendatacommunities.org/doc/district-council/cheltenham ,Cheltenham Borough Council,ICT,14092970,LinchPin Networks Limited,R4548-SUP005,IT - Cabling and Network,11/03/2022,988.5
https://opendatacommunities.org/doc/district-council/cheltenham ,Cheltenham Borough Council,ICT,14092973,LinchPin Networks Limited,R4548-SUP005,IT - Cabling and Network,11/03/2022,988.5
https://opendatacommunities.org/doc/district-council/cheltenham ,Cheltenham Borough Council,ICT,14092972,LinchPin Networks Limited,R4548-SUP005,IT - Cabling and Network,11/03/2022,"3,214.50"
https://opendatacommunities.org/doc/district-council/cheltenham ,Cheltenham Borough Council,ICT,14093363,LinchPin Networks Limited,R4548-SUP005,IT - Cabling and Network,25/03/2022,988.5
https://opendatacommunities.org/doc/district-council/cheltenham ,Cheltenham Borough Council,ICT,14093364,LinchPin Networks Limited,R4548-SUP005,IT - Cabling and Network,25/03/2022,673.5
https://opendatacommunities.org/doc/district-council/cheltenham ,Cheltenham Borough Council,Public Sector Decarbonisation Scheme (Carbon Neutral Agenda),14093194,Low Carbon Estates Limited,C1112-CAP032,Site Investigation,18/03/2022,"3,372.71"
https://opendatacommunities.org/doc/district-council/cheltenham ,Cheltenham Borough Council,Sustainability Measures,14092710,Low Carbon Exchange (LCX Solar Limited),C1107-CAH032,Building Works,02/03/2022,875
https://opendatacommunities.org/doc/district-council/cheltenham ,Cheltenham Borough Council,Registration of Electors,14093095,Maltbys the Bookbinders,R4000-ELE001,Equipment Purchase,18/03/2022,"1,115.00"
https://opendatacommunities.org/doc/district-council/cheltenham ,Cheltenham Borough Council,Emergency Planning,14092730,Midlands Building & Maintenance Ltd,R4400-EMP001,Services - Professional Fees,11/03/2022,706.5
https://opendatacommunities.org/doc/district-council/cheltenham ,Cheltenham Borough Council,Repairs and Maintenance,14093077,Morgan Lambert Limited,R2040-HRA100,R & M of Build Central Heating,18/03/2022,"1,276.00"
https://opendatacommunities.org/doc/district-council/cheltenham ,Cheltenham Borough Council,Sports & Open Spaces Operations,14092899,MPL Wrought Iron Cheltenham Ltd,R2075-OPS002,Grounds Maintenance - Contract,11/03/2022,"3,063.60"
https://opendatacommunities.org/doc/district-council/cheltenham ,Cheltenham Borough Council,Sports & Open Spaces Operations,14092899,MPL Wrought Iron Cheltenham Ltd,R2705-OPS002,Security Systems,11/03/2022,"-3,063.60"
https://opendatacommunities.org/doc/district-council/cheltenham ,Cheltenham Borough Council,Sports & Open Spaces Operations,14092899,MPL Wrought Iron Cheltenham Ltd,R2705-OPS002,Security Systems,11/03/2022,"1,953.00"
https://opendatacommunities.org/doc/district-council/cheltenham ,Cheltenham Borough Council,Sports & Open Spaces Operations,14092899,MPL Wrought Iron Cheltenham Ltd,R2705-OPS002,Security Systems,11/03/2022,600
https://opendatacommunities.org/doc/district-council/cheltenham ,Cheltenham Borough Council,"Cemetery, Crematorium and Churchyards",14093158,Mr John Sureda,R4408-CCM001,Other Contractors Fees,18/03/2022,868
https://opendatacommunities.org/doc/district-council/cheltenham ,Cheltenham Borough Council,Tourist/Visitor Information Centre/ Marketing Cheltenham wef 2019/20,14093012,Natasha Russell Ltd,R4400-TOU002,Services - Professional Fees,11/03/2022,"24,513.56"
https://opendatacommunities.org/doc/district-council/cheltenham ,Cheltenham Borough Council,Accountancy,14093338,Nathan Ford Design,R4401-SUP009,Services - Fees and Charges,31/03/2022,"1,478.00"
https://opendatacommunities.org/doc/district-council/cheltenham ,Cheltenham Borough Council,Window & Door Renewals,14093354,Nationwide Windows Limited,C1107-CAH017,Building Works,31/03/2022,"8,295.96"
https://opendatacommunities.org/doc/district-council/cheltenham ,Cheltenham Borough Council,Window & Door Renewals,14093600,Nationwide Windows Limited,C1107-CAH017,Building Works,31/03/2022,"3,822.00"
https://opendatacommunities.org/doc/district-council/cheltenham ,Cheltenham Borough Council,Window & Door Renewals,14093602,Nationwide Windows Limited,C1107-CAH017,Building Works,31/03/2022,"11,295.82"
https://opendatacommunities.org/doc/district-council/cheltenham ,Cheltenham Borough Council,Window & Door Renewals,14093601,Nationwide Windows Limited,C1107-CAH017,Building Works,31/03/2022,"5,205.71"
https://opendatacommunities.org/doc/district-council/cheltenham ,Cheltenham Borough Council,Car Parks - Off Street Operations,14093089,Network Merchants Limited,R4428-CPK001,Services - credit card charges,18/03/2022,"1,511.52"
https://opendatacommunities.org/doc/district-council/cheltenham ,Cheltenham Borough Council,Car Parks - Off Street R&M,14093028,Newport & Hereford Drainage Ltd t/a Metro Rod,R2043-CPK101,R & M of Build Drain Cleaning,18/03/2022,"3,230.00"
https://opendatacommunities.org/doc/district-council/cheltenham ,Cheltenham Borough Council,Cheltenham Depot,14093028,Newport & Hereford Drainage Ltd t/a Metro Rod,R2008-ADB103,R & M of Build - Reactive Repairs,18/03/2022,"2,700.00"
https://opendatacommunities.org/doc/district-council/cheltenham ,Cheltenham Borough Council,Cheltenham Depot,14093070,Newport & Hereford Drainage Ltd t/a Metro Rod,R2043-ADB103,R & M of Build Drain Cleaning,18/03/2022,"1,260.00"
https://opendatacommunities.org/doc/district-council/cheltenham ,Cheltenham Borough Council,Internal Improvements,14092786,NKS Contracts (Central) Limited,C1107-CAH004,Building Works,31/03/2022,"2,271.73"
https://opendatacommunities.org/doc/district-council/cheltenham ,Cheltenham Borough Council,Income and Expenditure on Investment Properties and Changes in Their Fair Value,14093193,Now Media Limited,R4401-FIE040,Services - Fees and Charges,25/03/2022,"5,695.00"
https://opendatacommunities.org/doc/district-council/cheltenham ,Cheltenham Borough Council,"Cemetery, Crematorium and Churchyards",14093153,Oconnor Construction Company Ltd,R3201-CCM001,Hire of Plant,18/03/2022,967
https://opendatacommunities.org/doc/district-council/cheltenham ,Cheltenham Borough Council,Cyber Business Park,14093248,Omnigenix,R4411-PLP105,Consultancy Fees,25/03/2022,"5,250.00"
https://opendatacommunities.org/doc/district-council/cheltenham ,Cheltenham Borough Council,Recreation Centre Repairs & Maintenance,14091652,Otis Limited,R2010-REC111,R & M of Plant Lifts,02/03/2022,759.73
https://opendatacommunities.org/doc/district-council/cheltenham ,Cheltenham Borough Council,Art Gallery & Museum Repairs & Maintenance,14093534,Otis Limited,R2041-CUL117,R & M of Build Lifts,31/03/2022,"1,766.16"
https://opendatacommunities.org/doc/district-council/cheltenham ,Cheltenham Borough Council,War Memorials,14092057,P & R Heating Limited,R2062-CUL002,R & M of Build Cyclical Electrical Remedials,18/03/2022,564
https://opendatacommunities.org/doc/district-council/cheltenham ,Cheltenham Borough Council,Town Hall Repairs & Maintenance,14091679,P & R Heating Limited,R2062-CUL112,R & M of Build Cyclical Electrical Remedials,04/03/2022,686
https://opendatacommunities.org/doc/district-council/cheltenham ,Cheltenham Borough Council,Recreation Centre Repairs & Maintenance,14092679,P & R Heating Limited,R2080-REC111,Mechanical Services,18/03/2022,809.36
https://opendatacommunities.org/doc/district-council/cheltenham ,Cheltenham Borough Council,Car Parks - Off Street R&M,14092825,P & R Heating Limited,R2002-CPK101,R & M of Build Due Vandalism,04/03/2022,"1,202.00"
https://opendatacommunities.org/doc/district-council/cheltenham ,Cheltenham Borough Council,Recreation Centre Repairs & Maintenance,14092845,P & R Heating Limited,R2062-REC111,R & M of Build Cyclical Electrical Remedials,04/03/2022,513.62
https://opendatacommunities.org/doc/district-council/cheltenham ,Cheltenham Borough Council,Oakley Resource Centre,14092819,P & R Heating Limited,R2062-COM101,R & M of Build Cyclical Electrical Remedials,11/03/2022,"1,495.00"
https://opendatacommunities.org/doc/district-council/cheltenham ,Cheltenham Borough Council,Cemetery & Crematorium Repairs & Maintenance,14092849,P & R Heating Limited,R2080-CCM111,Mechanical Services,18/03/2022,808
https://opendatacommunities.org/doc/district-council/cheltenham ,Cheltenham Borough Council,Recreation Centre Repairs & Maintenance,14092839,P & R Heating Limited,R2062-REC111,R & M of Build Cyclical Electrical Remedials,18/03/2022,"1,013.00"
https://opendatacommunities.org/doc/district-council/cheltenham ,Cheltenham Borough Council,Cheltenham Municipal Offices,14092963,P & R Heating Limited,R2080-ADB101,Mechanical Services,18/03/2022,"2,160.00"
https://opendatacommunities.org/doc/district-council/cheltenham ,Cheltenham Borough Council,Recreation Centre Repairs & Maintenance,14092961,P & R Heating Limited,R2079-REC111,Sanitary and Plumbing,11/03/2022,509.74
https://opendatacommunities.org/doc/district-council/cheltenham ,Cheltenham Borough Council,Cheltenham Depot,14092994,P & R Heating Limited,R2080-ADB103,Mechanical Services,18/03/2022,787.82
https://opendatacommunities.org/doc/district-council/cheltenham ,Cheltenham Borough Council,Pittville Pump Room Repairs & Maintenance,14093283,P & R Heating Limited,R2079-CUL113,Sanitary and Plumbing,25/03/2022,"7,483.43"
https://opendatacommunities.org/doc/district-council/cheltenham ,Cheltenham Borough Council,Car Parks - Off Street R&M,14093279,P & R Heating Limited,R2002-CPK101,R & M of Build Due Vandalism,25/03/2022,"2,125.00"
https://opendatacommunities.org/doc/district-council/cheltenham ,Cheltenham Borough Council,Recreation Centre Repairs & Maintenance,14093460,P & R Heating Limited,R2083-REC111,R&M of Build - Routine,31/03/2022,556
https://opendatacommunities.org/doc/district-council/cheltenham ,Cheltenham Borough Council,Pittville Pump Room Repairs & Maintenance,14093452,P & R Heating Limited,R2062-CUL113,R & M of Build Cyclical Electrical Remedials,31/03/2022,564
https://opendatacommunities.org/doc/district-council/cheltenham ,Cheltenham Borough Council,Town Hall Repairs & Maintenance,14093458,P & R Heating Limited,R2062-CUL112,R & M of Build Cyclical Electrical Remedials,31/03/2022,532
https://opendatacommunities.org/doc/district-council/cheltenham ,Cheltenham Borough Council,Art Gallery & Museum Repairs & Maintenance,14093609,P & R Heating Limited,R2080-CUL117,Mechanical Services,31/03/2022,585
https://opendatacommunities.org/doc/district-council/cheltenham ,Cheltenham Borough Council,Development Control - Applications,14092750,Park Avenue Recruitment Limited,R4400-DEV001,Services - Professional Fees,02/03/2022,"1,461.00"
https://opendatacommunities.org/doc/district-council/cheltenham ,Cheltenham Borough Council,Development Control - Applications,14092757,Park Avenue Recruitment Limited,R4400-DEV001,Services - Professional Fees,02/03/2022,799.2
https://opendatacommunities.org/doc/district-council/cheltenham ,Cheltenham Borough Council,Development Control - Applications,14092933,Park Avenue Recruitment Limited,R4400-DEV001,Services - Professional Fees,11/03/2022,"1,189.80"
https://opendatacommunities.org/doc/district-council/cheltenham ,Cheltenham Borough Council,Development Control - Applications,14093041,Park Avenue Recruitment Limited,R4400-DEV001,Services - Professional Fees,25/03/2022,"2,359.80"
https://opendatacommunities.org/doc/district-council/cheltenham ,Cheltenham Borough Council,Development Control - Applications,14093415,Park Avenue Recruitment Limited,R4400-DEV001,Services - Professional Fees,31/03/2022,"1,450.00"
https://opendatacommunities.org/doc/district-council/cheltenham ,Cheltenham Borough Council,Car Parks - Off Street Operations,14093204,Paybyphone Limited,R4401-CPK001,Services - Fees and Charges,25/03/2022,"2,994.58"
https://opendatacommunities.org/doc/district-council/cheltenham ,Cheltenham Borough Council,Public Sector Decarbonisation Scheme (Carbon Neutral Agenda),14092922,Perfect Circle JV Limited,C1112-CAP032,Site Investigation,11/03/2022,"2,263.56"
https://opendatacommunities.org/doc/district-council/cheltenham ,Cheltenham Borough Council,Minster Innovation Exchange,14092901,Perfect Circle JV Limited,C1105-CAP515,Design Services,11/03/2022,"4,964.54"
https://opendatacommunities.org/doc/district-council/cheltenham ,Cheltenham Borough Council,Public Sector Decarbonisation Scheme (Carbon Neutral Agenda),14093196,Perfect Circle JV Limited,C1112-CAP032,Site Investigation,18/03/2022,"3,134.16"
https://opendatacommunities.org/doc/district-council/cheltenham ,Cheltenham Borough Council,Minster Innovation Exchange,14093027,Perfect Circle JV Limited,C1105-CAP515,Design Services,11/03/2022,"6,300.41"
https://opendatacommunities.org/doc/district-council/cheltenham ,Cheltenham Borough Council,CCTV,14092982,Pipeline Logistics Limited,C4009-CAP201,C C T V,18/03/2022,"2,160.00"
https://opendatacommunities.org/doc/district-council/cheltenham ,Cheltenham Borough Council,CCTV,14092982,Pipeline Logistics Limited,C4009-CAP201,C C T V,18/03/2022,"13,650.00"
https://opendatacommunities.org/doc/district-council/cheltenham ,Cheltenham Borough Council,Postal Services,14092881,Pitney Bowes Limited T/as Pitney Bowes - Purchase Power,R4521-SUP024,Postages - franking machine,04/03/2022,"4,874.19"
https://opendatacommunities.org/doc/district-council/cheltenham ,Cheltenham Borough Council,Cheltenham Depot,14092618,Pro-Door Limited,R2083-ADB103,R&M of Build - Routine,18/03/2022,995
https://opendatacommunities.org/doc/district-council/cheltenham ,Cheltenham Borough Council,No Child Left Behind,14093335,Production:AV Limited,R4400-GBD002,Services - Professional Fees,25/03/2022,"1,532.99"
https://opendatacommunities.org/doc/district-council/cheltenham ,Cheltenham Borough Council,Property Services,14093449,Protector Insurance,R4964-SUP025,Insurance Excess,31/03/2022,"1,000.00"
https://opendatacommunities.org/doc/district-council/cheltenham ,Cheltenham Borough Council,Recreation Centre Repairs & Maintenance,14092539,R F Gardiner Limited T/as Gardiners,R2008-REC111,R & M of Build - Reactive Repairs,02/03/2022,541.02
https://opendatacommunities.org/doc/district-council/cheltenham ,Cheltenham Borough Council,Recreation Centre Repairs & Maintenance,14092537,R F Gardiner Limited T/as Gardiners,R2008-REC111,R & M of Build - Reactive Repairs,11/03/2022,"1,169.44"
https://opendatacommunities.org/doc/district-council/cheltenham ,Cheltenham Borough Council,Recreation Centre Repairs & Maintenance,14092227,R F Gardiner Limited T/as Gardiners,R2008-REC111,R & M of Build - Reactive Repairs,11/03/2022,"4,783.44"
https://opendatacommunities.org/doc/district-council/cheltenham ,Cheltenham Borough Council,Income and Expenditure on Investment Properties and Changes in Their Fair Value,14092529,R F Gardiner Limited T/as Gardiners,R2008-FIE040,R & M of Build - Reactive Repairs,11/03/2022,611.96
https://opendatacommunities.org/doc/district-council/cheltenham ,Cheltenham Borough Council,Sports & Open Spaces Repairs & Maintenance,14092429,R F Gardiner Limited T/as Gardiners,R2004-OPS122,R & M of Build Programmed,02/03/2022,"8,786.00"
https://opendatacommunities.org/doc/district-council/cheltenham ,Cheltenham Borough Council,Cheltenham Depot,14092689,R F Gardiner Limited T/as Gardiners,R2008-ADB103,R & M of Build - Reactive Repairs,11/03/2022,967.49
https://opendatacommunities.org/doc/district-council/cheltenham ,Cheltenham Borough Council,Car Parks - Off Street R&M,14092685,R F Gardiner Limited T/as Gardiners,R2008-CPK101,R & M of Build - Reactive Repairs,11/03/2022,740.58
https://opendatacommunities.org/doc/district-council/cheltenham ,Cheltenham Borough Council,Cheltenham Depot,14092688,R F Gardiner Limited T/as Gardiners,R2008-ADB103,R & M of Build - Reactive Repairs,04/03/2022,529.78
https://opendatacommunities.org/doc/district-council/cheltenham ,Cheltenham Borough Council,Cemetery & Crematorium Repairs & Maintenance,14092699,R F Gardiner Limited T/as Gardiners,R2008-CCM111,R & M of Build - Reactive Repairs,11/03/2022,755.08
https://opendatacommunities.org/doc/district-council/cheltenham ,Cheltenham Borough Council,Prince of Wales Stadium Repairs & Maintenance,14093114,R F Gardiner Limited T/as Gardiners,R2008-REC112,R & M of Build - Reactive Repairs,18/03/2022,646.96
https://opendatacommunities.org/doc/district-council/cheltenham ,Cheltenham Borough Council,Cheltenham Depot,14092690,R F Gardiner Limited T/as Gardiners,R2008-ADB103,R & M of Build - Reactive Repairs,18/03/2022,"1,631.76"
https://opendatacommunities.org/doc/district-council/cheltenham ,Cheltenham Borough Council,Cheltenham Depot,14092693,R F Gardiner Limited T/as Gardiners,R2008-ADB103,R & M of Build - Reactive Repairs,25/03/2022,913.2
https://opendatacommunities.org/doc/district-council/cheltenham ,Cheltenham Borough Council,Cheltenham Depot,14092651,R F Gardiner Limited T/as Gardiners,R2008-ADB103,R & M of Build - Reactive Repairs,11/03/2022,"1,650.00"
https://opendatacommunities.org/doc/district-council/cheltenham ,Cheltenham Borough Council,Pittville Pump Room Repairs & Maintenance,14092932,R F Gardiner Limited T/as Gardiners,R2004-CUL113,R & M of Build Programmed,11/03/2022,"8,468.54"
https://opendatacommunities.org/doc/district-council/cheltenham ,Cheltenham Borough Council,Cheltenham Municipal Offices,14093053,R F Gardiner Limited T/as Gardiners,R2008-ADB101,R & M of Build - Reactive Repairs,18/03/2022,507.65
https://opendatacommunities.org/doc/district-council/cheltenham ,Cheltenham Borough Council,Cheltenham Depot,14093036,R F Gardiner Limited T/as Gardiners,R2008-ADB103,R & M of Build - Reactive Repairs,25/03/2022,688.84
https://opendatacommunities.org/doc/district-council/cheltenham ,Cheltenham Borough Council,Sports & Open Spaces Repairs & Maintenance,14093031,R F Gardiner Limited T/as Gardiners,R2008-OPS122,R & M of Build - Reactive Repairs,18/03/2022,635.08
https://opendatacommunities.org/doc/district-council/cheltenham ,Cheltenham Borough Council,Cheltenham Depot,14093104,R F Gardiner Limited T/as Gardiners,R2008-ADB103,R & M of Build - Reactive Repairs,18/03/2022,"1,386.84"
https://opendatacommunities.org/doc/district-council/cheltenham ,Cheltenham Borough Council,Car Parks - Off Street R&M,14093210,R F Gardiner Limited T/as Gardiners,R2008-CPK101,R & M of Build - Reactive Repairs,25/03/2022,554.36
https://opendatacommunities.org/doc/district-council/cheltenham ,Cheltenham Borough Council,Car Parks - Off Street R&M,14093109,R F Gardiner Limited T/as Gardiners,R2002-CPK101,R & M of Build Due Vandalism,18/03/2022,"1,675.04"
https://opendatacommunities.org/doc/district-council/cheltenham ,Cheltenham Borough Council,Prince of Wales Stadium Repairs & Maintenance,14093062,R F Gardiner Limited T/as Gardiners,R2008-REC112,R & M of Build - Reactive Repairs,18/03/2022,"1,345.08"
https://opendatacommunities.org/doc/district-council/cheltenham ,Cheltenham Borough Council,Prince of Wales Stadium Repairs & Maintenance,14093063,R F Gardiner Limited T/as Gardiners,R2008-REC112,R & M of Build - Reactive Repairs,11/03/2022,"2,401.28"
https://opendatacommunities.org/doc/district-council/cheltenham ,Cheltenham Borough Council,Oakley Resource Centre,14093033,R F Gardiner Limited T/as Gardiners,R2008-COM101,R & M of Build - Reactive Repairs,18/03/2022,777.73
https://opendatacommunities.org/doc/district-council/cheltenham ,Cheltenham Borough Council,Income and Expenditure on Investment Properties and Changes in Their Fair Value,14093209,R F Gardiner Limited T/as Gardiners,R2008-FIE040,R & M of Build - Reactive Repairs,25/03/2022,770.6
https://opendatacommunities.org/doc/district-council/cheltenham ,Cheltenham Borough Council,Cheltenham Municipal Offices,14093052,R F Gardiner Limited T/as Gardiners,R2008-ADB101,R & M of Build - Reactive Repairs,18/03/2022,649.66
https://opendatacommunities.org/doc/district-council/cheltenham ,Cheltenham Borough Council,Oakley Resource Centre,14093286,R F Gardiner Limited T/as Gardiners,R2008-COM101,R & M of Build - Reactive Repairs,25/03/2022,828.84
https://opendatacommunities.org/doc/district-council/cheltenham ,Cheltenham Borough Council,Cheltenham Depot,14093103,R F Gardiner Limited T/as Gardiners,R2008-ADB103,R & M of Build - Reactive Repairs,18/03/2022,806.96
https://opendatacommunities.org/doc/district-council/cheltenham ,Cheltenham Borough Council,Income and Expenditure on Investment Properties and Changes in Their Fair Value,14093106,R F Gardiner Limited T/as Gardiners,R2081-FIE040,Roof Repairs,18/03/2022,"3,688.72"
https://opendatacommunities.org/doc/district-council/cheltenham ,Cheltenham Borough Council,Cheltenham Depot,14093105,R F Gardiner Limited T/as Gardiners,R2008-ADB103,R & M of Build - Reactive Repairs,18/03/2022,881.02
https://opendatacommunities.org/doc/district-council/cheltenham ,Cheltenham Borough Council,Income and Expenditure on Investment Properties and Changes in Their Fair Value,14093107,R F Gardiner Limited T/as Gardiners,R2008-FIE040,R & M of Build - Reactive Repairs,18/03/2022,"3,518.96"
https://opendatacommunities.org/doc/district-council/cheltenham ,Cheltenham Borough Council,Cheltenham Depot,14093034,R F Gardiner Limited T/as Gardiners,R2008-ADB103,R & M of Build - Reactive Repairs,18/03/2022,"2,964.00"
https://opendatacommunities.org/doc/district-council/cheltenham ,Cheltenham Borough Council,Development Control - Applications,14092917,Reach Publishing Services Ltd,R4317-DEV001,Non Staff Advertising,11/03/2022,529.62
https://opendatacommunities.org/doc/district-council/cheltenham ,Cheltenham Borough Council,Development Control - Applications,14093214,Reach Publishing Services Ltd,R4317-DEV001,Non Staff Advertising,25/03/2022,570.36
https://opendatacommunities.org/doc/district-council/cheltenham ,Cheltenham Borough Council,Council Tax Collection,14093350,Reach Publishing Services Ltd,R4317-LTC001,Non Staff Advertising,25/03/2022,549.99
https://opendatacommunities.org/doc/district-council/cheltenham ,Cheltenham Borough Council,Tourist/Visitor Information Centre/ Marketing Cheltenham wef 2019/20,14093457,Red Twin Limited,R4401-TOU002,Services - Fees and Charges,31/03/2022,"3,400.00"
https://opendatacommunities.org/doc/district-council/cheltenham ,Cheltenham Borough Council,Printing Services,14092582,Ricoh UK Limited,R4300-SUP022,Printing - Services,04/03/2022,"1,027.45"
https://opendatacommunities.org/doc/district-council/cheltenham ,Cheltenham Borough Council,Printing Services,14093271,Ricoh UK Limited,R4300-SUP022,Printing - Services,31/03/2022,763.11
https://opendatacommunities.org/doc/district-council/cheltenham ,Cheltenham Borough Council,Parks & Gardens Operations,14092855,Romaquip Ltd,R2075-OPS001,Grounds Maintenance - Contract,11/03/2022,700
https://opendatacommunities.org/doc/district-council/cheltenham ,Cheltenham Borough Council,Registration of Electors,14093258,Royal Mail (Billing),R4521-ELE001,Postages - franking machine,25/03/2022,"1,315.73"
https://opendatacommunities.org/doc/district-council/cheltenham ,Cheltenham Borough Council,Council Tax Collection,14093344,Royal Mail (Billing),R4521-LTC001,Postages - franking machine,25/03/2022,601.32
https://opendatacommunities.org/doc/district-council/cheltenham ,Cheltenham Borough Council,Development Control - Applications,14093249,Ryder Landscape Consultants Limited,R4400-DEV001,Services - Professional Fees,25/03/2022,633
https://opendatacommunities.org/doc/district-council/cheltenham ,Cheltenham Borough Council,Income and Expenditure on Investment Properties and Changes in Their Fair Value,14093071,Ryeford Cleaning Services Limited,R2400-FIE040,Water Services - Unmetered,18/03/2022,529.17
https://opendatacommunities.org/doc/district-council/cheltenham ,Cheltenham Borough Council,Art Gallery & Museum Repairs & Maintenance,14092989,Sally Strachey Historic Conservation Ltd T/A SSH Conservation,R2004-CUL117,R & M of Build Programmed,18/03/2022,"2,340.00"
https://opendatacommunities.org/doc/district-council/cheltenham ,Cheltenham Borough Council,Pittville Pump Room Repairs & Maintenance,14092990,Sally Strachey Historic Conservation Ltd T/A SSH Conservation,R2004-CUL113,R & M of Build Programmed,11/03/2022,"2,500.00"
https://opendatacommunities.org/doc/district-council/cheltenham ,Cheltenham Borough Council,Town Hall Repairs & Maintenance,14092991,Sally Strachey Historic Conservation Ltd T/A SSH Conservation,R2004-CUL112,R & M of Build Programmed,18/03/2022,"2,500.00"
https://opendatacommunities.org/doc/district-council/cheltenham ,Cheltenham Borough Council,Repairs and Maintenance,14092459,SAS EPC,R2018-HRA100,R & M of Build Voids Energy Performance Certificates,02/03/2022,"1,050.00"
https://opendatacommunities.org/doc/district-council/cheltenham ,Cheltenham Borough Council,Repairs and Maintenance,14092969,SAS EPC,R2018-HRA100,R & M of Build Voids Energy Performance Certificates,11/03/2022,650
https://opendatacommunities.org/doc/district-council/cheltenham ,Cheltenham Borough Council,Asbestos Management,14092951,Savills (UK) Limited,C1004-CAH012,Legal Fees,11/03/2022,"5,400.00"
https://opendatacommunities.org/doc/district-council/cheltenham ,Cheltenham Borough Council,Income and Expenditure on Investment Properties and Changes in Their Fair Value,14092774,Savills UK Main Client Account,R2004-FIE040,R & M of Build Programmed,18/03/2022,"9,847.57"
https://opendatacommunities.org/doc/district-council/cheltenham ,Cheltenham Borough Council,Income and Expenditure on Investment Properties and Changes in Their Fair Value,14092772,Savills UK Main Client Account,R4401-FIE040,Services - Fees and Charges,02/03/2022,"9,627.00"
https://opendatacommunities.org/doc/district-council/cheltenham ,Cheltenham Borough Council,Income and Expenditure on Investment Properties and Changes in Their Fair Value,14092773,Savills UK Main Client Account,R4401-FIE040,Services - Fees and Charges,11/03/2022,"4,325.56"
https://opendatacommunities.org/doc/district-council/cheltenham ,Cheltenham Borough Council,Income and Expenditure on Investment Properties and Changes in Their Fair Value,14092771,Savills UK Main Client Account,R4401-FIE040,Services - Fees and Charges,02/03/2022,"6,607.00"
https://opendatacommunities.org/doc/district-council/cheltenham ,Cheltenham Borough Council,Income and Expenditure on Investment Properties and Changes in Their Fair Value,14092770,Savills UK Main Client Account,R4401-FIE040,Services - Fees and Charges,04/03/2022,"1,525.00"
https://opendatacommunities.org/doc/district-council/cheltenham ,Cheltenham Borough Council,Income and Expenditure on Investment Properties and Changes in Their Fair Value,14092769,Savills UK Main Client Account,R4401-FIE040,Services - Fees and Charges,11/03/2022,"2,335.00"
https://opendatacommunities.org/doc/district-council/cheltenham ,Cheltenham Borough Council,Income and Expenditure on Investment Properties and Changes in Their Fair Value,14092775,Savills UK Main Client Account,R4401-FIE040,Services - Fees and Charges,11/03/2022,"9,627.00"
https://opendatacommunities.org/doc/district-council/cheltenham ,Cheltenham Borough Council,Income and Expenditure on Investment Properties and Changes in Their Fair Value,14093197,Savills UK Main Client Account,R4401-FIE040,Services - Fees and Charges,25/03/2022,"6,524.89"
https://opendatacommunities.org/doc/district-council/cheltenham ,Cheltenham Borough Council,Income and Expenditure on Investment Properties and Changes in Their Fair Value,14093199,Savills UK Main Client Account,R4401-FIE040,Services - Fees and Charges,25/03/2022,"1,525.00"
https://opendatacommunities.org/doc/district-council/cheltenham ,Cheltenham Borough Council,Income and Expenditure on Investment Properties and Changes in Their Fair Value,14093200,Savills UK Main Client Account,R4401-FIE040,Services - Fees and Charges,25/03/2022,"6,607.00"
https://opendatacommunities.org/doc/district-council/cheltenham ,Cheltenham Borough Council,Income and Expenditure on Investment Properties and Changes in Their Fair Value,14093198,Savills UK Main Client Account,R4401-FIE040,Services - Fees and Charges,25/03/2022,"2,335.00"
https://opendatacommunities.org/doc/district-council/cheltenham ,Cheltenham Borough Council,Income and Expenditure on Investment Properties and Changes in Their Fair Value,14093201,Savills UK Main Client Account,R4401-FIE040,Services - Fees and Charges,25/03/2022,"9,627.00"
https://opendatacommunities.org/doc/district-council/cheltenham ,Cheltenham Borough Council,Cheltenham Depot,14092740,Securitas Security Services Ltd,R2705-ADB103,Security Systems,18/03/2022,"1,654.58"
https://opendatacommunities.org/doc/district-council/cheltenham ,Cheltenham Borough Council,"Rents, Rates, Taxes and Other Charges",14092953,Severn Trent Water,R2400-HRA120,Water Services - Unmetered,11/03/2022,732.54
https://opendatacommunities.org/doc/district-council/cheltenham ,Cheltenham Borough Council,"Cemetery, Crematorium and Churchyards",14092896,Severnside Safety Supplies Limited,R4201-CCM001,Uniforms,04/03/2022,"1,047.38"
https://opendatacommunities.org/doc/district-council/cheltenham ,Cheltenham Borough Council,Parks & Gardens Operations,14092756,Shelley Signs Limited,R4003-OPS001,Tools & Equipment - R & M,02/03/2022,"3,095.00"
https://opendatacommunities.org/doc/district-council/cheltenham ,Cheltenham Borough Council,Parks & Gardens Operations,14092756,Shelley Signs Limited,R2075-OPS001,Grounds Maintenance - Contract,02/03/2022,"1,075.00"
https://opendatacommunities.org/doc/district-council/cheltenham ,Cheltenham Borough Council,Internal Improvements,14093561,Shield Electrical Services Ltd,C1107-CAH004,Building Works,31/03/2022,"5,000.00"
https://opendatacommunities.org/doc/district-council/cheltenham ,Cheltenham Borough Council,Internal Improvements,14093561,Shield Electrical Services Ltd,C1107-CAH004,Building Works,31/03/2022,"3,193.10"
https://opendatacommunities.org/doc/district-council/cheltenham ,Cheltenham Borough Council,Internal Improvements - Communal,14093483,Shield Electrical Services Ltd,C1107-CAH035,Building Works,31/03/2022,"1,069.38"
https://opendatacommunities.org/doc/district-council/cheltenham ,Cheltenham Borough Council,Internal Improvements - Communal,14093483,Shield Electrical Services Ltd,C1107-CAH035,Building Works,31/03/2022,"3,000.00"
https://opendatacommunities.org/doc/district-council/cheltenham ,Cheltenham Borough Council,Internal Improvements - Communal,14093484,Shield Electrical Services Ltd,C1107-CAH035,Building Works,31/03/2022,"22,000.00"
https://opendatacommunities.org/doc/district-council/cheltenham ,Cheltenham Borough Council,Internal Improvements - Communal,14093484,Shield Electrical Services Ltd,C1107-CAH035,Building Works,31/03/2022,"12,351.13"
https://opendatacommunities.org/doc/district-council/cheltenham ,Cheltenham Borough Council,"Paths, Fences & Walls",14093240,Snape Contracting Services Limited,C1107-CAH021,Building Works,31/03/2022,"2,629.30"
https://opendatacommunities.org/doc/district-council/cheltenham ,Cheltenham Borough Council,Asbestos Management,14093244,Snape Contracting Services Limited,C1107-CAH012,Building Works,31/03/2022,"2,629.30"
https://opendatacommunities.org/doc/district-council/cheltenham ,Cheltenham Borough Council,Fire Protection,14093237,Snape Contracting Services Limited,C1107-CAH015,Building Works,31/03/2022,"7,788.08"
https://opendatacommunities.org/doc/district-council/cheltenham ,Cheltenham Borough Council,Internal Improvements,14093243,Snape Contracting Services Limited,C1107-CAH004,Building Works,31/03/2022,"20,474.92"
https://opendatacommunities.org/doc/district-council/cheltenham ,Cheltenham Borough Council,Repairs and Maintenance,14093242,Snape Contracting Services Limited,R2008-HRA100,R & M of Build - Reactive Repairs,25/03/2022,585.9
https://opendatacommunities.org/doc/district-council/cheltenham ,Cheltenham Borough Council,Internal Improvements,14093239,Snape Contracting Services Limited,C1107-CAH004,Building Works,31/03/2022,"3,393.51"
https://opendatacommunities.org/doc/district-council/cheltenham ,Cheltenham Borough Council,Internal Improvements,14093246,Snape Contracting Services Limited,C1107-CAH004,Building Works,31/03/2022,"5,984.45"
https://opendatacommunities.org/doc/district-council/cheltenham ,Cheltenham Borough Council,Asbestos Management,14093241,Snape Contracting Services Limited,C1107-CAH012,Building Works,31/03/2022,"5,285.00"
https://opendatacommunities.org/doc/district-council/cheltenham ,Cheltenham Borough Council,Bulking Facility,14093469,South West Wood Products Limited,R2703-RYC008,Waste Management,25/03/2022,"3,432.00"
https://opendatacommunities.org/doc/district-council/cheltenham ,Cheltenham Borough Council,Bulking Facility,14093468,South West Wood Products Limited,R2703-RYC008,Waste Management,25/03/2022,583.68
https://opendatacommunities.org/doc/district-council/cheltenham ,Cheltenham Borough Council,Community Welfare Grants,14092783,Springbank Community Group CIC,R6280-GBD001,Grants,02/03/2022,"4,000.00"
https://opendatacommunities.org/doc/district-council/cheltenham ,Cheltenham Borough Council,Cyber Business Park,14093392,Squashed Robot Films Ltd,R4318-PLP105,Photography & Promotional Materials/Design,25/03/2022,"3,880.00"
https://opendatacommunities.org/doc/district-council/cheltenham ,Cheltenham Borough Council,Public Sector Decarbonisation Scheme (Carbon Neutral Agenda),14092595,Stark Software International Limited,C4008-CAP032,Communications Equipment,11/03/2022,"31,553.14"
https://opendatacommunities.org/doc/district-council/cheltenham ,Cheltenham Borough Council,Property Services,14092937,Stark Software International Limited,R4535-SUP025,IT - Licences,11/03/2022,535.49
https://opendatacommunities.org/doc/district-council/cheltenham ,Cheltenham Borough Council,Parks & Gardens Operations,14092935,Stonearts,R2075-OPS001,Grounds Maintenance - Contract,11/03/2022,"3,500.00"
https://opendatacommunities.org/doc/district-council/cheltenham ,Cheltenham Borough Council,Parks & Gardens Operations,14092935,Stonearts,R2075-OPS001,Grounds Maintenance - Contract,11/03/2022,"3,600.00"
https://opendatacommunities.org/doc/district-council/cheltenham ,Cheltenham Borough Council,Parks & Gardens Operations,14092935,Stonearts,R2075-OPS001,Grounds Maintenance - Contract,11/03/2022,"-3,600.00"
https://opendatacommunities.org/doc/district-council/cheltenham ,Cheltenham Borough Council,Parks & Gardens Operations,14093101,Streetmaster (South Wales) Limited,R2500-OPS001,Fixtures and Fittings - Purchases,18/03/2022,"1,971.20"
https://opendatacommunities.org/doc/district-council/cheltenham ,Cheltenham Borough Council,Disabled Facility Grants,14093205,Stroud District Council,C5000-CAP221,Grants,18/03/2022,"20,000.00"
https://opendatacommunities.org/doc/district-council/cheltenham ,Cheltenham Borough Council,Disabled Facility Grants,14092938,T P G Disable Aids Limited (TPG),C5000-CAP221,Grants,11/03/2022,"4,481.00"
https://opendatacommunities.org/doc/district-council/cheltenham ,Cheltenham Borough Council,Legal,14092060,Tewkesbury Borough Council,R4401-SUP004,Services - Fees and Charges,25/03/2022,"135,394.72"
https://opendatacommunities.org/doc/district-council/cheltenham ,Cheltenham Borough Council,Legal,14092490,Tewkesbury Borough Council,R4426-SUP004,Legal Expenses,04/03/2022,"6,400.00"
https://opendatacommunities.org/doc/district-council/cheltenham ,Cheltenham Borough Council,Legal,14093221,Tewkesbury Borough Council,R4401-SUP004,Services - Fees and Charges,18/03/2022,"2,250.00"
https://opendatacommunities.org/doc/district-council/cheltenham ,Cheltenham Borough Council,Supervision and Management,14093404,Tewkesbury Borough Council,R4420-HRA110,Legal Expenses And Court Costs,31/03/2022,"1,081.00"
https://opendatacommunities.org/doc/district-council/cheltenham ,Cheltenham Borough Council,Supervision and Management,14093403,Tewkesbury Borough Council,R4420-HRA110,Legal Expenses And Court Costs,25/03/2022,"2,584.00"
https://opendatacommunities.org/doc/district-council/cheltenham ,Cheltenham Borough Council,Supervision and Management,14093402,Tewkesbury Borough Council,R4420-HRA110,Legal Expenses And Court Costs,31/03/2022,"1,186.00"
https://opendatacommunities.org/doc/district-council/cheltenham ,Cheltenham Borough Council,Phase 3 Development,14093523,Tewkesbury Borough Council,C1001-CAH039,Acquisition of Buildings,31/03/2022,"8,500.00"
https://opendatacommunities.org/doc/district-council/cheltenham ,Cheltenham Borough Council,Sports & Open Spaces Operations,14092505,TFN Landscapes Limited,R4003-OPS002,Tools & Equipment - R & M,04/03/2022,"1,940.00"
https://opendatacommunities.org/doc/district-council/cheltenham ,Cheltenham Borough Council,Tourist/Visitor Information Centre/ Marketing Cheltenham wef 2019/20,14092763,The Cotswold Printing Company Limited,R4400-TOU002,Services - Professional Fees,11/03/2022,540
https://opendatacommunities.org/doc/district-council/cheltenham ,Cheltenham Borough Council,COVID Management,14092945,The Oyster Partnership Limited,R4401-COV021,Services - Fees and Charges,11/03/2022,"1,104.00"
https://opendatacommunities.org/doc/district-council/cheltenham ,Cheltenham Borough Council,COVID Management,14093097,The Oyster Partnership Limited,R4401-COV021,Services - Fees and Charges,18/03/2022,"1,008.00"
https://opendatacommunities.org/doc/district-council/cheltenham ,Cheltenham Borough Council,High Street re-opening,14092967,The South West Research Company Limited,R4400-COV020,Services - Professional Fees,11/03/2022,900
https://opendatacommunities.org/doc/district-council/cheltenham ,Cheltenham Borough Council,Disabled Facility Grants,14093213,The Surveying Practice - Client Account,C5000-CAP221,Grants,18/03/2022,"19,872.07"
https://opendatacommunities.org/doc/district-council/cheltenham ,Cheltenham Borough Council,Adaptations for the Disabled (CBC),14093322,The Surveying Practice - Client Account,C1107-CAH028,Building Works,25/03/2022,"18,000.00"
https://opendatacommunities.org/doc/district-council/cheltenham ,Cheltenham Borough Council,Adaptations for the Disabled (CBC),14093760,The Surveying Practice - Client Account,C1107-CAH028,Building Works,31/03/2022,"12,000.00"
https://opendatacommunities.org/doc/district-council/cheltenham ,Cheltenham Borough Council,Adaptations for the Disabled (CBC),14092857,The Surveying Practice - Client Account,C1107-CAH028,Building Works,04/03/2022,"7,071.00"
https://opendatacommunities.org/doc/district-council/cheltenham ,Cheltenham Borough Council,Disabled Facility Grants,14093212,The Surveying Practice - Client Account,C5000-CAP221,Grants,18/03/2022,"8,709.08"
https://opendatacommunities.org/doc/district-council/cheltenham ,Cheltenham Borough Council,Adaptations for the Disabled (CBC),14092942,The Surveying Practice - Client Account,C1107-CAH028,Building Works,11/03/2022,"11,235.50"
https://opendatacommunities.org/doc/district-council/cheltenham ,Cheltenham Borough Council,Adaptations for the Disabled (CBC),14093321,The Surveying Practice - Client Account,C1107-CAH028,Building Works,25/03/2022,"14,690.50"
https://opendatacommunities.org/doc/district-council/cheltenham ,Cheltenham Borough Council,Adaptations for the Disabled (CBC),14093368,The Surveying Practice - Client Account,C1107-CAH028,Building Works,25/03/2022,"8,372.00"
https://opendatacommunities.org/doc/district-council/cheltenham ,Cheltenham Borough Council,Adaptations for the Disabled (CBC),14093361,The Surveying Practice - Client Account,C1107-CAH028,Building Works,25/03/2022,"14,478.50"
https://opendatacommunities.org/doc/district-council/cheltenham ,Cheltenham Borough Council,Adaptations for the Disabled (CBC),14093360,The Surveying Practice - Client Account,C1107-CAH028,Building Works,25/03/2022,"9,177.00"
https://opendatacommunities.org/doc/district-council/cheltenham ,Cheltenham Borough Council,Disabled Facility Grants,14093266,The Surveying Practice - Client Account,C5000-CAP221,Grants,18/03/2022,"5,975.27"
https://opendatacommunities.org/doc/district-council/cheltenham ,Cheltenham Borough Council,Adaptations for the Disabled (CBC),14093359,The Surveying Practice - Client Account,C1107-CAH028,Building Works,25/03/2022,"10,614.50"
https://opendatacommunities.org/doc/district-council/cheltenham ,Cheltenham Borough Council,Disabled Facility Grants,14093323,The Surveying Practice - Client Account,C5000-CAP221,Grants,25/03/2022,"5,533.00"
https://opendatacommunities.org/doc/district-council/cheltenham ,Cheltenham Borough Council,Disabled Facility Grants,14093324,The Surveying Practice - Client Account,C5000-CAP221,Grants,25/03/2022,"7,381.78"
https://opendatacommunities.org/doc/district-council/cheltenham ,Cheltenham Borough Council,Disabled Facility Grants,14093331,The Surveying Practice - Client Account,C5000-CAP221,Grants,25/03/2022,"3,145.32"
https://opendatacommunities.org/doc/district-council/cheltenham ,Cheltenham Borough Council,Civic Expenses,14092975,Thomas Fattorini Limited,R4401-DRM009,Services - Fees and Charges,11/03/2022,574.92
https://opendatacommunities.org/doc/district-council/cheltenham ,Cheltenham Borough Council,Recreation Centre Repairs & Maintenance,14092930,TR Scaffolding (Bristol) Limited,R2004-REC111,R & M of Build Programmed,18/03/2022,750
https://opendatacommunities.org/doc/district-council/cheltenham ,Cheltenham Borough Council,Treasury Management,14093016,Tradition UK Limited,R4447-COR006,Brokerage Fees,18/03/2022,"1,246.58"
https://opendatacommunities.org/doc/district-council/cheltenham ,Cheltenham Borough Council,Cyber Business Park,14093396,Trowers & Hamlins LLP,R4411-PLP105,Consultancy Fees,25/03/2022,"14,128.50"
https://opendatacommunities.org/doc/district-council/cheltenham ,Cheltenham Borough Council,Cyber Business Park,14093395,Trowers & Hamlins LLP,R4411-PLP105,Consultancy Fees,25/03/2022,"6,245.50"
https://opendatacommunities.org/doc/district-council/cheltenham ,Cheltenham Borough Council,Cyber Business Park,14093394,Trowers & Hamlins LLP,R4411-PLP105,Consultancy Fees,25/03/2022,"14,569.21"
https://opendatacommunities.org/doc/district-council/cheltenham ,Cheltenham Borough Council,Cyber Business Park,14093399,Trowers & Hamlins LLP,R4411-PLP105,Consultancy Fees,25/03/2022,"16,466.00"
https://opendatacommunities.org/doc/district-council/cheltenham ,Cheltenham Borough Council,Cyber Business Park,14093397,Trowers & Hamlins LLP,R4411-PLP105,Consultancy Fees,25/03/2022,"17,943.50"
https://opendatacommunities.org/doc/district-council/cheltenham ,Cheltenham Borough Council,Cyber Business Park,14093398,Trowers & Hamlins LLP,R4411-PLP105,Consultancy Fees,25/03/2022,"5,201.00"
https://opendatacommunities.org/doc/district-council/cheltenham ,Cheltenham Borough Council,Cyber Business Park,14093393,Trowers & Hamlins LLP,R4411-PLP105,Consultancy Fees,25/03/2022,"24,401.20"
https://opendatacommunities.org/doc/district-council/cheltenham ,Cheltenham Borough Council,Cyber Business Park,14093400,Trowers & Hamlins LLP,R4411-PLP105,Consultancy Fees,25/03/2022,"19,040.00"
https://opendatacommunities.org/doc/district-council/cheltenham ,Cheltenham Borough Council,"Cemetery, Crematorium and Churchyards",14093407,Ubico Limited,R3020-CCM001,Vehicle Maintenance - Contract,25/03/2022,"1,306.88"
https://opendatacommunities.org/doc/district-council/cheltenham ,Cheltenham Borough Council,Development Control - Applications,14092885,Valuation Office Agency (VOA),R4400-DEV001,Services - Professional Fees,04/03/2022,"3,250.00"
https://opendatacommunities.org/doc/district-council/cheltenham ,Cheltenham Borough Council,Pest Control,14093272,Venables Pest Control,R4401-REG018,Services - Fees and Charges,25/03/2022,600
https://opendatacommunities.org/doc/district-council/cheltenham ,Cheltenham Borough Council,Bulky Household Waste,14093594,Vision 21,R4401-WST004,Services - Fees and Charges,31/03/2022,"5,106.25"
https://opendatacommunities.org/doc/district-council/cheltenham ,Cheltenham Borough Council,"Cemetery, Crematorium and Churchyards",14093262,Vivedia Limited,R4011-CCM001,Goods For Resale,18/03/2022,"3,754.00"
https://opendatacommunities.org/doc/district-council/cheltenham ,Cheltenham Borough Council,Cheltenham Municipal Offices,14092944,VP-AV Limited,R4003-ADB101,Tools & Equipment - R & M,25/03/2022,558.7
https://opendatacommunities.org/doc/district-council/cheltenham ,Cheltenham Borough Council,ICT,14093146,West Oxfordshire District Council,R4548-SUP005,IT - Cabling and Network,18/03/2022,"14,612.01"
https://opendatacommunities.org/doc/district-council/cheltenham ,Cheltenham Borough Council,ICT,14093217,West Oxfordshire District Council,R4548-SUP005,IT - Cabling and Network,18/03/2022,"13,316.39"
https://opendatacommunities.org/doc/district-council/cheltenham ,Cheltenham Borough Council,Telephones,14093253,West Oxfordshire District Council,R4515-SUP006,Comms - Telephone Call Charges,25/03/2022,"9,855.64"
https://opendatacommunities.org/doc/district-council/cheltenham ,Cheltenham Borough Council,Miscellaneous Operational Properties,14093203,Womble Bond Dickinson (UK) LLP,R4400-ADB104,Services - Professional Fees,25/03/2022,"1,062.50"
https://opendatacommunities.org/doc/district-council/cheltenham ,Cheltenham Borough Council,Minster Innovation Exchange,14093473,WorkShop Cheltenham Limited,C1116-CAP515,Other Development Fees,25/03/2022,"2,575.00"
https://opendatacommunities.org/doc/district-council/cheltenham ,Cheltenham Borough Council,Minster Innovation Exchange,14093474,WorkShop Cheltenham Limited,C1116-CAP515,Other Development Fees,25/03/2022,"2,575.00"
https://opendatacommunities.org/doc/district-council/cheltenham ,Cheltenham Borough Council,Twinning Expenses,14092803,Mr A M I Kandour,R4401-DRM011,Services - Fees and Charges,11/03/2022,"1,000.00"
https://opendatacommunities.org/doc/district-council/cheltenham ,Cheltenham Borough Council,Tourist/Visitor Information Centre/ Marketing Cheltenham wef 2019/20,14093491,RVT Group Ltd,R4001-TOU002,Tools & Equipment - Hire,31/03/2022,"1,431.20"
Bank Transactions,,,,,,,,
https://opendatacommunities.org/doc/district-council/cheltenham ,Cheltenham Borough Council,Cheltenham Municipal Offices,10038864,PROTECTOR INSURANCE REDACTED,R2008-ADB101,R & M of Build - Reactive Repairs,01/03/2022,"-7,294.40"
https://opendatacommunities.org/doc/district-council/cheltenham ,Cheltenham Borough Council,Cheltenham Municipal Offices,10038897,WEST MERCIA ENERGY - ELECTRICITY - MUNICIPAL OFFICES   - 01/01/2022-31/01/2022,R2100-ADB101,Electricity,18/03/2022,"8,385.36"
https://opendatacommunities.org/doc/district-council/cheltenham ,Cheltenham Borough Council,Cheltenham Municipal Offices,10038913,WEST MERCIA ENERGY - GAS - MUNICIPAL OFFICES   - 31/12/2021-31/01/2022,R2101-ADB101,Gas,18/03/2022,"2,011.79"
https://opendatacommunities.org/doc/district-council/cheltenham ,Cheltenham Borough Council,Cheltenham Depot,10038897,WEST MERCIA ENERGY - ELECTRICITY - CENTRAL DEPOT - SWINDON ROAD   - 01/09/2021-30/11/2021,R2100-ADB103,Electricity,18/03/2022,"6,427.96"
https://opendatacommunities.org/doc/district-council/cheltenham ,Cheltenham Borough Council,Cheltenham Depot,10038913,WEST MERCIA ENERGY - GAS - CENTRAL DEPOT- 31/12/2021-31/01/2022,R2101-ADB103,Gas,18/03/2022,"2,478.23"
https://opendatacommunities.org/doc/district-council/cheltenham ,Cheltenham Borough Council,Cheltenham Depot,10038851,"WATER PLUS REDACTED - ENVIRONMENTAL MAINTENANCE, SWINDON ROAD, CHELTENHAM - WATER SUPPLY - 23/01/2022-04/03/2022",R2401-ADB103,Water Services - Metered,21/03/2022,"2,913.55"
https://opendatacommunities.org/doc/district-council/cheltenham ,Cheltenham Borough Council,Cheltenham Depot,10038926,"WATER PLUS REDACTED- ENVIRONMENTAL MAINTENANCE, SWINDON ROAD, CHELTENHAM - DRAINAGE  CHARGE - 01/04/2020-23/09/2020",R2402-ADB103,Sewerage and Environmental Services,30/03/2022,"6,946.10"
https://opendatacommunities.org/doc/district-council/cheltenham ,Cheltenham Borough Council,Cheltenham Depot,10038926,"WATER PLUS REDACTED - ENVIRONMENTAL MAINTENANCE, SWINDON ROAD, CHELTENHAM - DRAINAGE  CHARGE - 10/02/2020-01/04/2020",R2402-ADB103,Sewerage and Environmental Services,30/03/2022,"2,122.91"
https://opendatacommunities.org/doc/district-council/cheltenham ,Cheltenham Borough Council,Cheltenham Depot,10038926,"WATER PLUS REDACTED - ENVIRONMENTAL MAINTENANCE, SWINDON ROAD, CHELTENHAM - DRAINAGE  CHARGE - 29/09/2020-23/01/2021",R2402-ADB103,Sewerage and Environmental Services,30/03/2022,"-4,842.42"
https://opendatacommunities.org/doc/district-council/cheltenham ,Cheltenham Borough Council,Cheltenham Depot,10038926,"WATER PLUS REDACTED ENVIRONMENTAL MAINTENANCE, SWINDON ROAD, CHELTENHAM - DRAINAGE CHARGE - 23/09/2021-04/03/2022",R2402-ADB103,Sewerage and Environmental Services,30/03/2022,"6,379.96"
https://opendatacommunities.org/doc/district-council/cheltenham ,Cheltenham Borough Council,Cheltenham Depot,10038926,"WATER PLUS REDACTED - ENVIRONMENTAL MAINTENANCE, SWINDON ROAD, CHELTENHAM - DRAINGE  CHARGE - 01/04/2020-23/09/2020",R2402-ADB103,Sewerage and Environmental Services,30/03/2022,"-6,946.10"
https://opendatacommunities.org/doc/district-council/cheltenham ,Cheltenham Borough Council,Cheltenham Depot,10038926,"WATER PLUS REDACTED - ENVIRONMENTAL MAINTENANCE, SWINDON ROAD, CHELTENHAM - SEWERAGE CHARGE - 01/04/2021-04/03/2022",R2402-ADB103,Sewerage and Environmental Services,30/03/2022,"2,636.67"
https://opendatacommunities.org/doc/district-council/cheltenham ,Cheltenham Borough Council,Cheltenham Depot,10038926,"WATER PLUS REDACTED - ENVIRONMENTAL MAINTENANCE, SWINDON ROAD, CHELTENHAM - TRADE EFFLUENT  CHARGE - 23/03/2021-04/03/2022",R2402-ADB103,Sewerage and Environmental Services,30/03/2022,725.46
https://opendatacommunities.org/doc/district-council/cheltenham ,Cheltenham Borough Council,Cheltenham Depot,10038926,"WATER PLUS REDACTED - ENVIRONMENTAL MAINTENANCE, SWINDON ROAD, CHELTENHAM -DRAINAGE CHARGE - 10/02/2020-01/04/2020",R2402-ADB103,Sewerage and Environmental Services,30/03/2022,"-2,122.91"
https://opendatacommunities.org/doc/district-council/cheltenham ,Cheltenham Borough Council,Phase 3 Development,10038704,REDACTED,C1001-CAH039,Acquisition of Buildings,07/03/2022,"11,900.00"
https://opendatacommunities.org/doc/district-council/cheltenham ,Cheltenham Borough Council,Phase 3 Development,10038762,REDACTED,C1001-CAH039,Acquisition of Buildings,11/03/2022,"107,100.00"
https://opendatacommunities.org/doc/district-council/cheltenham ,Cheltenham Borough Council,Phase 3 Development,10038822,REDACTED,C1001-CAH039,Acquisition of Buildings,14/03/2022,"3,570.00"
https://opendatacommunities.org/doc/district-council/cheltenham ,Cheltenham Borough Council,"Cemetery, Crematorium and Churchyards",10038897,WEST MERCIA ENERGY - ELECTRICITY - CEMETERY & CREMATORIUM  - 01/01/2022-31/01/2022,R2100-CCM001,Electricity,18/03/2022,"2,314.02"
https://opendatacommunities.org/doc/district-council/cheltenham ,Cheltenham Borough Council,"Cemetery, Crematorium and Churchyards",10038913,WEST MERCIA ENERGY - GAS - CEMETERY & CREMATORIUM- 31/12/2021-31/01/2022,R2101-CCM001,Gas,18/03/2022,"4,227.97"
https://opendatacommunities.org/doc/district-council/cheltenham ,Cheltenham Borough Council,"Cemetery, Crematorium and Churchyards",10038788,SIEMENS FIN SERV REDACTED - LEASE RENTAL,R4002-CCM001,Tools & Equipment - Lease/Rental,14/03/2022,518.96
https://opendatacommunities.org/doc/district-council/cheltenham ,Cheltenham Borough Council,CCTV,10038897,WEST MERCIA ENERGY - ELECTRICITY - CCTV @ VARIOUS LOCATIONS   - 01/01/2022-31/01/2022,R2100-CCT001,Electricity,18/03/2022,712.96
https://opendatacommunities.org/doc/district-council/cheltenham ,Cheltenham Borough Council,Big Local Project,10038708,BIG LOCAL TRUST GRANT- 21/22,R6280-COM104,Grants,04/03/2022,"-67,095.00"
https://opendatacommunities.org/doc/district-council/cheltenham ,Cheltenham Borough Council,Corporate Policy Making,10038926,ICO REDACTED,R4401-COR003,Services - Fees and Charges,30/03/2022,"2,895.00"
https://opendatacommunities.org/doc/district-council/cheltenham ,Cheltenham Borough Council,Treasury Management,10038788,CARDNET SERVICE CHARGES - REDACTED,R4428-COR006,Services - credit card charges,14/03/2022,"3,680.48"
https://opendatacommunities.org/doc/district-council/cheltenham ,Cheltenham Borough Council,Treasury Management,10038788,CARDNET SERVICE CHARGES - REDACTED,R4428-COR006,Services - credit card charges,14/03/2022,"1,351.15"
https://opendatacommunities.org/doc/district-council/cheltenham ,Cheltenham Borough Council,Treasury Management,10038788,CARDNET SERVICE CHARGES -REDACTED,R4428-COR006,Services - credit card charges,14/03/2022,617.60
https://opendatacommunities.org/doc/district-council/cheltenham ,Cheltenham Borough Council,High Street re-opening,10038964,CUBE MODUULAR LTD,R4400-COV020,Services - Professional Fees,31/03/2022,"5,999.40"
https://opendatacommunities.org/doc/district-council/cheltenham ,Cheltenham Borough Council,High Street re-opening,10038964,THE SOUTH WEST RES,R4400-COV020,Services - Professional Fees,31/03/2022,"1,080.00"
https://opendatacommunities.org/doc/district-council/cheltenham ,Cheltenham Borough Council,Car Parks - Off Street Operations,10038897,WEST MERCIA ENERGY - ELECTRICITY -CAR PARK - GROSVENOR TERRACE  - 01/01/2022-31/01/2022,R2100-CPK001,Electricity,18/03/2022,"1,418.07"
https://opendatacommunities.org/doc/district-council/cheltenham ,Cheltenham Borough Council,Car Parks - Off Street Operations,10038897,WEST MERCIA ENERGY - ELECTRICITY -CAR PARK - REGENT ARCADE  - 01/01/2022-31/01/2022,R2100-CPK001,Electricity,18/03/2022,"1,034.96"
https://opendatacommunities.org/doc/district-council/cheltenham ,Cheltenham Borough Council,Car Parks - Off Street Operations,10038894,KENNETT EQUIPMENT REDACTED,R4002-CPK001,Tools & Equipment - Lease/Rental,28/03/2022,"6,700.14"
https://opendatacommunities.org/doc/district-council/cheltenham ,Cheltenham Borough Council,Car Parks - Off Street Operations,10038770,BARCLAYCARD REDACTED,R4428-CPK001,Services - credit card charges,10/03/2022,963.88
https://opendatacommunities.org/doc/district-council/cheltenham ,Cheltenham Borough Council,Car Parks - Off Street Operations,10038851,S/LINE REDACTED,R4428-CPK001,Services - credit card charges,21/03/2022,"2,472.97"
https://opendatacommunities.org/doc/district-council/cheltenham ,Cheltenham Borough Council,Car Parks - Off Street Operations,10038851,S/LINE REDACTED,R4428-CPK001,Services - credit card charges,21/03/2022,"2,221.95"
https://opendatacommunities.org/doc/district-council/cheltenham ,Cheltenham Borough Council,Town Hall Repairs & Maintenance,10038897,WEST MERCIA ENERGY - ELECTRICITY - CHELTENHAM TOWN HALL  - 01/01/2022-31/01/2022,R2100-CUL112,Electricity,18/03/2022,"7,120.13"
https://opendatacommunities.org/doc/district-council/cheltenham ,Cheltenham Borough Council,Town Hall Repairs & Maintenance,10038913,WEST MERCIA ENERGY - GAS - CHELTENHAM TOWN HALL- 31/12/2021-31/01/2022,R2101-CUL112,Gas,18/03/2022,"2,635.93"
https://opendatacommunities.org/doc/district-council/cheltenham ,Cheltenham Borough Council,Pittville Pump Room Repairs & Maintenance,10038897,WEST MERCIA ENERGY - ELECTRICITY - PITTVILLE PUMP ROOMS    - 01/01/2022-31/01/2022,R2100-CUL113,Electricity,18/03/2022,"3,005.61"
https://opendatacommunities.org/doc/district-council/cheltenham ,Cheltenham Borough Council,Pittville Pump Room Repairs & Maintenance,10038913,WEST MERCIA ENERGY - GAS -PITTVILLE PUMP ROOMS   - 31/12/2021-31/01/2022,R2101-CUL113,Gas,18/03/2022,842.81
https://opendatacommunities.org/doc/district-council/cheltenham ,Cheltenham Borough Council,Art Gallery & Museum Repairs & Maintenance,10038894,WEST MERCIA ENERGY - ELECTRICITY - 01/01/2022-31/01/2022 - THE WILSON ART GALLERY & MUSEUM,R2100-CUL117,Electricity,28/03/2022,782.84
https://opendatacommunities.org/doc/district-council/cheltenham ,Cheltenham Borough Council,Art Gallery & Museum Repairs & Maintenance,10038897,WEST MERCIA ENERGY - ELECTRICITY - WILSON ART GALLERY & MUSEUM   - 01/01/2022-31/01/2022,R2100-CUL117,Electricity,18/03/2022,"3,509.19"
https://opendatacommunities.org/doc/district-council/cheltenham ,Cheltenham Borough Council,Art Gallery & Museum Repairs & Maintenance,10038913,WEST MERCIA ENERGY - GAS - WILSON ART GALLERY & MUSEUM   - 31/12/2021-31/01/2022,R2101-CUL117,Gas,18/03/2022,"2,433.66"
https://opendatacommunities.org/doc/district-council/cheltenham ,Cheltenham Borough Council,No Child Left Behind,10038964,PRODUCTION AV,R4400-GBD002,Services - Professional Fees,31/03/2022,"3,000.00"
https://opendatacommunities.org/doc/district-council/cheltenham ,Cheltenham Borough Council,Supervision and Management,10038853,OPUS ENERGY CORPORATION REDACTED,R2100-HRA110,Electricity,22/03/2022,"15,656.75"
https://opendatacommunities.org/doc/district-council/cheltenham ,Cheltenham Borough Council,Supervision and Management,10038913,WEST MERCIA ENERGY - GAS - COOPERS COURT - 31/12/2021-31/01/2022,R2101-HRA110,Gas,18/03/2022,826.48
https://opendatacommunities.org/doc/district-council/cheltenham ,Cheltenham Borough Council,Supervision and Management,10038913,WEST MERCIA ENERGY - GAS - GILBERT WARD COURT  - 31/12/2021-31/01/2022,R2101-HRA110,Gas,18/03/2022,734.29
https://opendatacommunities.org/doc/district-council/cheltenham ,Cheltenham Borough Council,Supervision and Management,10038913,WEST MERCIA ENERGY - GAS - GOLDFOOT HOUSE   - 31/12/2021-31/01/2022,R2101-HRA110,Gas,18/03/2022,859.00
https://opendatacommunities.org/doc/district-council/cheltenham ,Cheltenham Borough Council,Supervision and Management,10038913,WEST MERCIA ENERGY - GAS - WALLACE HOUSE   - 31/12/2021-31/01/2022,R2101-HRA110,Gas,18/03/2022,"1,120.20"
https://opendatacommunities.org/doc/district-council/cheltenham ,Cheltenham Borough Council,Supervision and Management,10038913,WEST MERCIA ENERGY - GAS -POPES CLOSE    - 31/12/2021-31/01/2022,R2101-HRA110,Gas,18/03/2022,697.74
https://opendatacommunities.org/doc/district-council/cheltenham ,Cheltenham Borough Council,Sports & Open Spaces Operations,10038918,WEST MERCIA ENERGY - ELECTRICITY - BURROWS PAVILION - 01/01/2022-31/01/2022,R2100-OPS002,Electricity,24/03/2022,"1,907.35"
https://opendatacommunities.org/doc/district-council/cheltenham ,Cheltenham Borough Council,Sports & Open Spaces Operations,10038916,"WATER PLUS REDACTED - ALLOTMENTS, REDDINGS  ROAD, CHELTENHAM - WATER CHARGE - 07/02/2022-07/03/2022",R2401-OPS002,Water Services - Metered,30/03/2022,548.42
https://opendatacommunities.org/doc/district-council/cheltenham ,Cheltenham Borough Council,Recreation Centre Repairs & Maintenance,10038897,"WEST MERCIA ENERGY - ELECTRICITY - LEISURE CENTRE, TOMMY TAYLORS LANE   - 01/01/2022-31/01/2022",R2100-REC111,Electricity,18/03/2022,"12,683.63"
https://opendatacommunities.org/doc/district-council/cheltenham ,Cheltenham Borough Council,Recreation Centre Repairs & Maintenance,10038913,WEST MERCIA ENERGY - GAS - LEISURE CENTRE - TOMMY TAYLORS LANE   - 31/12/2021-31/01/2022,R2101-REC111,Gas,18/03/2022,"9,293.92"
https://opendatacommunities.org/doc/district-council/cheltenham ,Cheltenham Borough Council,Recreation Centre Repairs & Maintenance,10038894,"WATER PLUS REDACTED - CHELTENHAM RECREATION CENTRE, TOMMY TAYLORS LANE, CHELTENHAM - WATER SUPPLY - 01/02/2022-01/03/2022",R2401-REC111,Water Services - Metered,28/03/2022,"1,945.36"
https://opendatacommunities.org/doc/district-council/cheltenham ,Cheltenham Borough Council,Recreation Centre Repairs & Maintenance,10038894,"WATER PLUS REDACTED - CHELTENHAM RECREATION CENTRE, TOMMY TAYLORS LANE, CHELTENHAM -  SEWERAGE SUPPLY - 01/02/2022-01/03/2022",R2402-REC111,Sewerage and Environmental Services,28/03/2022,"1,407.73"
https://opendatacommunities.org/doc/district-council/cheltenham ,Cheltenham Borough Council,Prince of Wales Stadium Repairs & Maintenance,10038897,WEST MERCIA ENERGY - ELECTRICITY - PRINCE OF WALES STADIUM  - 01/01/2022-31/01/2022,R2100-REC112,Electricity,18/03/2022,"1,211.07"
https://opendatacommunities.org/doc/district-council/cheltenham ,Cheltenham Borough Council,Public Conveniences,10038897,WEST MERCIA ENERGY - ELECTRICITY -PUBLIC CONVENIENCE - PITTVILLE PARK    - 01/01/2022-31/01/2022,R2100-REG019,Electricity,18/03/2022,516.95
https://opendatacommunities.org/doc/district-council/cheltenham ,Cheltenham Borough Council,Telephones,10038765,VODAFONE CORPORATION REDACTED,R4507-SUP006,Comms - Mobile Telephones,09/03/2022,"1,093.17"
https://opendatacommunities.org/doc/district-council/cheltenham ,Cheltenham Borough Council,Regulatory and Environmental Services,10038908,DWP RM MAIN NO 1 REDACTED,R4000-SUP040,Equipment Purchase,29/03/2022,"-1,563.38"
